Workbook

Sheet 2
C2: 2 | D2: Project :Tameya 220/66/11 S/S | I2: 2018-04-07
A3: Project : | B3: Tameya 220/66/11KV S/S | AD3: previous
A4: Code | B4: Item Description | D4: Unit | E4: Item Weight % | F4: Unit Price L.E. | G4: Previous | I4: Current | K4: TOTAL % | L4: Total Price L.E. | AA4: =NOW() -> 2018-04-14T10:16:16.320 | AB4: =(C2)+1 -> 3 | AD4: 0
G5: % | H5: EGP | I5: % | J5: EGP
B6: TOTAL CONTRACT FOR CIVIL AND SITE WORK | D6: LS
A7: B/G/600 000 | B7: Civil Works: | L7: 9454398.45
A8: B/G/620 000 | B8: 220 kv AND 66 kv GIS OUTDOOR EQUIPMENTS, RECEIVING GANTREES, SUPPORTS OF GIP CONNECTION, NETURAL POINTS AND CABLE SEALING ENDS AND THE FUTURE 66 kv BAYS. (Lump sum prices of items # 520 100.... 520 200).
A9: B/G/620 100 | B9: Concrete Work | L9: 379008.75
A10: B/G/620 101 | B10: EXCAVATION
B11: Excavation including Excavated material Transfer (As Specified) | D11: LS | E11: 0.15 | F11: =$L$9*E11 -> 56851.3125 | G11: 0 | H11: =G11*F11 -> 0 | I11: 0.05 | J11: =(F11*I11) -> 2842.565625 | K11: =G11+I11 -> 0.05 | L11: =H11+J11 -> 2842.565625
A12: B/G/620 102 | B12: SOIL REPLACEMENT
B13: Supply and apply , SOIL REPLACEMENT According to the approved sieve analysis according to drawings &specs , the rate include leveling , water , compaction and compaction test to be compacted with relative compaction 98%. | D13: LS | E13: 0.07 | F13: =$L$9*E13 -> 26530.6125 | G13: 0 | H13: =G13*F13 -> 0 | I13: 0.1 | J13: =(F13*I13) -> 2653.06125 | K13: =G13+I13 -> 0.1 | L13: =H13+J13 -> 2653.06125
A14: B/G/620 103 | B14: Backfeling
B15: backfilling by approved fill material ,including compaction , the rate include compaction test according to specs. | C15: M3 | D15: LS | E15: 0.1 | F15: 37900.875 | G15: 0 | H15: =G15*F15 -> 0 | I15: 0.12 | J15: =(F15*I15) -> 4548.105 | K15: =G15+I15 -> 0.12 | L15: =H15+J15 -> 4548.105
A16: B/G/620 104 | B16: PLAIN CONCRETE
B17: Supply and provide ready mix plain concrete grade 250 KG/m³, the clause includes form work, adding additives, pouring and curing and that concrete should be finished as per specs and industry assets. | D17: LS | E17: 0.15 | F17: 56851.3125 | G17: 0 | H17: =G17*F17 -> 0 | I17: 0 | J17: =(F17*I17) -> 0 | K17: =G17+I17 -> 0 | L17: =H17+J17 -> 0
A18: B/G/620 105 | B18: REINFORCEMENT CONCRETE
B19: Reinforced concrete for foundation and semelle with specified strength including all required joints and testing (As Specified) (Cement content not less than 350 Kg/m³) | D19: LS | E19: 0.4 | F19: 151603.5 | G19: 0 | H19: =G19*F19 -> 0 | I19: 0 | J19: =(F19*I19) -> 0 | K19: =G19+I19 -> 0 | L19: =H19+J19 -> 0
A20: B/G/620 106 | B20: INSULLATION
B21: providing (supplying & painting) three coats of bituminous emulsion above concrete surface which in contact with soil as per drawings & specs. | D21: LS | E21: 0.13 | F21: 49271.1375 | G21: 0 | H21: =G21*F21 -> 0 | I21: 0.1 | J21: =(F21*I21) -> 4927.11375 | K21: =G21+I21 -> 0.1 | L21: =H21+J21 -> 4927.11375
A22: B/G/620 100 | B22: Total | E22: =SUM(E11:E21) -> 1 | F22: =SUM(F11:F21) -> 379008.75 | K22: =L22/L9 -> 0.0395 | L22: =SUM(L11:L21) -> 14970.84563
A23: B/G 620 200 | B23: STRUCTURAL STEEL WORKS | L23: 1137026.24
A24: B/G/620 201 | B24: DESIGN
B25: delver all the aproved drawings to owner | D25: LS | E25: 0.1 | F25: =$L$23*E25 -> 113702.624 | G25: 0 | H25: =G25*F25 -> 0 | I25: 0.05 | J25: =(F25*I25) -> 5685.1312 | K25: =G25+I25 -> 0.05 | L25: =H25+J25 -> 5685.1312
A26: B/G/620 202 | B26: SUPPLYING
B27: supplying of complete steel structure (Anchor bolts; columns; embedded beams; embedded plates; fixed plates ) according to drawing and specs. | D27: LS | E27: 0.45 | F27: =$L$23*E27 -> 511661.808 | G27: 0 | H27: =G27*F27 -> 0 | I27: 0 | J27: =(F27*I27) -> 0 | K27: =G27+I27 -> 0 | L27: =H27+J27 -> 0
A28: B/G/620 203 | B28: ERECTION
B29: steel structure erection including welding (Anchor bolts; columns; embedded beams; embedded plates; fixed plates ) according to specs. | D29: LS | E29: 0.3 | F29: 341107.872 | G29: 0 | H29: =G29*F29 -> 0 | I29: 0 | J29: =(F29*I29) -> 0 | K29: =G29+I29 -> 0 | L29: =H29+J29 -> 0
A30: B/G/620 204 | B30: GROUTING
B31: Supply and apply Non shrink grout (As Specified) | D31: LS | E31: 0.15 | F31: 170553.936 | G31: 0 | H31: =G31*F31 -> 0 | I31: 0 | J31: =(F31*I31) -> 0 | K31: =G31+I31 -> 0 | L31: =H31+J31 -> 0
A32: B/G/620 200 | B32: Total | E32: =SUM(E25:E31) -> 1 | F32: =SUM(F25:F31) -> 1137026.24 | K32: =L32/L23 -> 0.005 | L32: =SUM(L25:L31) -> 5685.1312
A33: B/G/701 400 | B33: DESIGN | L33: 151603.4985
A34: B/G/701 401 | B34: PRIMARY DESIGN
B35: delver all the aproved drawings to owner | D35: LS | E35: 0.9 | F35: =$L$33*E35 -> 136443.1487 | G35: 0 | H35: =G35*F35 -> 0 | I35: 0 | J35: =(F35*I35) -> 0 | K35: =G35+I35 -> 0 | L35: =H35+J35 -> 0
A36: B/G/701 402 | B36: AS BULT DRAWINGS
B37: delver aproved as built drawings to owner | D37: LS | E37: 0.1 | F37: =$L$33*E37 -> 15160.34985 | G37: 0 | H37: =G37*F37 -> 0 | I37: 0 | J37: =(F37*I37) -> 0 | K37: =G37+I37 -> 0 | L37: =H37+J37 -> 0
A38: B/G/701 400 | B38: Total | E38: =SUM(E35:E37) -> 1 | F38: =SUM(F35:F37) -> 151603.4985 | K38: =L38/L33 -> 0 | L38: =SUM(L35:L37) -> 0
A39: B/G/701 500 | B39: DECENNIAL LIABILITY INSURANCE | I39: 0 | L39: 126336.2488
B40: DECENNIAL LIABILITY INSURANCE | C40: DECENNIAL LIABILITY INSURANCE | D40: LS | E40: 1 | F40: =$L$39*E40 -> 126336.2488 | G40: 0 | H40: =G40*F40 -> 0 | I40: 0 | J40: =(F40*I40) -> 0 | K40: =G40+I40 -> 0 | L40: =H40+J40 -> 0
A41: B/G/701 500 | B41: Total | E41: =SUM(E40) -> 1 | F41: =SUM(F40) -> 126336.2488 | K41: =L41/L39 -> 0 | L41: =SUM(L40) -> 0
A42: TOTAL CONTRACT | D42: =L9+L23+L33+L39 -> 1793974.737
A43: TOTAL CURRENT INVOICE | D43: =L22+L32+L38+L41 -> 20655.97683 | K43: =D43/D42 -> 0.01151408456
A44: TOTAL PREVIOUS INVOICE | D44: =AD4 -> 0

Sheet civil (hidden)
A3: Project : | B3: Tameya 220/66/11KV S/S
A4: Code | B4: Item Description | D4: Unit | F4: % Item Weight | G4: % Total Contract | H4: Unit Price L.E. | J4: Previous | L4: Current | M4: TOTAL | N4: Total Price L.E.
I5: % | J5: EGP | K5: % | L5: EGP
N6: =N7+N306 -> 18254966
A7: B/G/600 000 | B7: Civil Works: | D7: LS | N7: 9454398.45
A8: B/G/620 000 | B8: 220 GIS OUTDOOR EQUIPMENTS, RECEIVING GANTREES, SUPPORTS OF GIP CONNECTION, NETURAL POINTS AND CABLE SEALING ENDS. (Lump sum prices of items # 520 100.... 520 200).
A9: B/G/620 100 | B9: Concrete Work | N9: 379008.75
A10: B/G/620 101 | B10: EXCAVATION
B11: Excavation including Excavated material Transfer (As Specified) | D11: LS | F11: 0.1 | H11: =F11*N9 -> 37900.875 | M11: =L11+J11 -> 0 | N11: =M11*H11 -> 0
A12: B/G/620 102 | B12: SOIL REPLACEMENT
B13: Supply and apply , SOIL REPLACEMENT According to the approved sieve analysis according to drawings &specs , the rate include leveling , water , compaction and compaction test to be compacted with relative compaction 98%. | D13: LS | F13: 0.1 | H13: =F13*N9 -> 37900.875 | M13: =L13+J13 -> 0 | N13: =M13*H13 -> 0
A14: B/G/620 103 | B14: Backfeling
B15: backfilling by approved fill material selected from excavation ,including compaction , the rate include compaction test according to specs. | C15: M3 | D15: LS | F15: 0.12 | H15: =F15*N9 -> 45481.05 | M15: =L15+J15 -> 0 | N15: =M15*H15 -> 0
A16: B/G/620 104 | B16: PLAIN CONCRETE
B17: Supply and provide ready mix plain concrete grade 250 KG/m³, the clause includes form work, adding additives, pouring and curing, to be separated from soil by 250 micron polyethylene proofing sheet, and that concrete should be finished as per specs and industry assets. | D17: LS | F17: 0.15 | H17: 104227.4055 | M17: =L17+J17 -> 0 | N17: =M17*H17 -> 0
A18: B/G/620 105 | B18: REINFORCEMENT CONCRETE
B19: Reinforced concrete for foundation and semelle with specified strength including all required joints and testing (As Specified) (Cement content not less than 350 Kg/m³) | D19: LS | F19: 0.45 | H19: 312682.2165 | M19: =L19+J19 -> 0 | N19: =M19*H19 -> 0
A20: B/G/620 106 | B20: INSULLATION
B21: providing (supplying & painting) three coats of bituminous emulsion above concrete surface which in contact with soil as per drawings & specs. | D21: LS | F21: 0.08 | H21: 55587.9496 | M21: =L21+J21 -> 0 | N21: =M21*H21 -> 0
A22: B/G/620 100 | B22: Total | F22: =SUM(F11:F21) -> 1 | M22: =SUM(M11:M21) -> 0 | N22: =SUM(N11:N21) -> 0
A23: B/G 620 200 | B23: STRUCTURAL STEEL WORKS | N23: 1137026.24
A24: B/G/620 201 | B24: SUPPLYING
B25: supplying of complete steel structure (Anchor bolts; columns; embedded beams; embedded plates; fixed plates ) according to drawing and specs. | D25: LS | F25: 0.6 | H25: 571428.57 | M25: =L25+J25 -> 0 | N25: =M25*H25 -> 0
A26: B/G/620 202 | B26: ERECTION
B27: steel structure erection including welding (Anchor bolts; columns; embedded beams; embedded plates; fixed plates ) according to specs. | D27: LS | F27: 0.3 | H27: 285714.285 | M27: =L27+J27 -> 0 | N27: =M27*H27 -> 0
A28: B/G/620 203 | B28: GROUTING
B29: Supply and apply Non shrink grout (As Specified) | D29: LS | F29: 0.1 | H29: 95238.095 | M29: =L29+J29 -> 0 | N29: =M29*H29 -> 0
A30: B/G/620 200 | B30: Total | F30: =SUM(F25:F29) -> 1 | M30: =SUM(M25:M29) -> 0 | N30: =SUM(N25:N29) -> 0
A31: B/G/630 000 | B31: 220 KV GIS switch gear building (lump sum prices of items Nos. 630 100 through 630 900)
A32: B/G/630 100 | B32: Concrete Work | N32: 1183189.5
A33: B/G/630 101 | B33: EXCAVATION
B34: Excavation including Excavated material Transfer (As Specified) | D34: LS | F34: 0.06 | H34: 93673.4694 | M34: =L34+J34 -> 0 | N34: =M34*H34 -> 0
A35: B/G/630 102 | B35: SOIL REPLACEMENT
B36: Supply and apply , SOIL REPLACEMENT According to the approved sieve analysis according to drawings &specs , the rate include leveling , water , compaction and compaction test to be compacted with relative compaction 98%. | D36: LS | F36: 0.08 | H36: 124897.9592 | M36: =L36+J36 -> 0 | N36: =M36*H36 -> 0
A37: B/G/630 103 | B37: Backfeling
B38: backfilling by approved fill material selected from excavation ,including compaction , the rate include compaction test according to specs. | C38: M3 | D38: LS | F38: 0.08 | H38: 124897.9592 | M38: =L38+J38 -> 0 | N38: =M38*H38 -> 0
A39: B/G/630 104 | B39: PLAIN CONCRETE
B40: Supply and provide ready mix plain concrete grade 250 KG/m³, the clause includes form work, adding additives, pouring and curing, to be separated from soil by 250 micron polyethylene proofing sheet, and that concrete should be finished as per specs and industry assets. | D40: LS | F40: 0.1 | H40: 156122.449 | M40: =L40+J40 -> 0 | N40: =M40*H40 -> 0
A41: B/G/630 105 | B41: REINFORCEMENT CONCRETE FOR FOOTINGS
B42: Reinforced concrete for foundation and semelle with specified strength including all required joints and testing (As Specified) (Cement content not less than 350 Kg/m³) | D42: LS | F42: 0.2 | H42: 312244.898 | M42: =L42+J42 -> 0 | N42: =M42*H42 -> 0
A43: B/G/630 106 | B43: REINFORCEMENT CONCRETE FOR COLUMNS AND BEAMS
B44: Reinforced concrete for columns and beams with specified strength including all required testing (As Specified) (Cement content not less than 350 Kg/m³) | D44: LS | F44: 0.15 | H44: 234183.6735 | M44: =L44+J44 -> 0 | N44: =M44*H44 -> 0
A45: B/G/630 107 | B45: REINFORCEMENT CONCRETE FOR ROOF SLAP
B46: Reinforced concrete for roof slab and beams with specified strength including faire faceand all required testing (As Specified) (Cement content not less than 350 Kg/m³) | D46: LS | F46: 0.2 | H46: 312244.898 | M46: =L46+J46 -> 0 | N46: =M46*H46 -> 0
A47: B/G/630 108 | B47: INSULLATION
B48: providing (supplying & painting) three coats of bituminous emulsion above concrete surface which in contact with soil as per drawings & specs. ( Up to zero level ) | D48: LS | F48: 0.05 | H48: 78061.2245 | M48: =L48+J48 -> 0 | N48: =M48*H48 -> 0
A49: B/G/630 109 | B49: SLAP ON GRADE
B50: applying all the reqaired layes of slap on grade according to drawings and specs. | D50: LS | F50: 0.08 | H50: 124897.9592 | M50: =L50+J50 -> 0 | N50: =M50*H50 -> 0
A51: B/G/630 100 | B51: Total | F51: =SUM(F34:F50) -> 1 | M51: =SUM(M34:M50) -> 0 | N51: =SUM(N34:N50) -> 0
A52: B/G/630 200 | B52: STRUCTURAL STEEL WORKS | N52: 104398.45
A53: B/G/620 201 | B53: SUPPLYING
B54: supplying of complete steel structure (Anchor bolts; columns; embedded beams; embedded plates; fixed plates ) according to drawing and specs. | D54: LS | F54: 0.6 | H54: 48979.59 | M54: =L54+J54 -> 0 | N54: =M54*H54 -> 0
A55: B/G/630 202 | B55: ERECTION
B56: steel structure erection including welding (Anchor bolts; columns; embedded beams; embedded plates; fixed plates ) according to specs. | D56: LS | F56: 0.4 | H56: 32653.06 | M56: =L56+J56 -> 0 | N56: =M56*H56 -> 0
A57: B/G/630 200 | B57: Total | F57: =SUM(F54:F56) -> 1 | M57: =SUM(M54:M56) -> 0 | N57: =SUM(N54:N56) -> 0
A58: B/G/630 300 | B58: ARCHITECTURAL WORKS | N58: 904793.97
A59: B/G/630 301 | B59: MASONARY WORK
B60: supplying & constructing and installing)brick walls solid cemented 25cm thick.; the brick dimensions are 250*120*60 mm, the clause includes all lintels; scaffolding; dowels and wire mesh which connect brick with the concrete items before starting plaster works, the mortar contents is 350 kg of ordinary Portland cement for each cubic meter of sand, as per drawings & specs, and all necessary to finish works as per the technical industrial assets, the rate include lentel required. | D60: LS | F60: 0.3 | H60: 214285.713 | M60: =L60+J60 -> 0 | N60: =M60*H60 -> 0
A61: B/G/630 302 | B61: PLASTERING WORKS
B62: providing (supplying & plastering) for the cement mortar for walls, is including leveling; scaffolding; all necessary tools; the cement content in the mortar not less than 350 kg Ordinary Portland Cement for each cubic meter of sand, as per drawings & specs, and all necessary to finish works as per the technical industrial assets. . | D62: LS | F62: 0.15 | H62: 107142.8565 | M62: =L62+J62 -> 0 | N62: =M62*H62 -> 0
A63: B/G/630 303 | B63: PAINTING WORKS
B64: providing (supplying & paint) emulsion plastic washable paint for internal walls is including three putty coats; one fin mastic flat coat, and two final coat, the clause included all necessary tools and steel scaffolding as per drawings & specs, and all necessary to finish works as per the technical industrial assets, and the approved color samples. | D64: LS | F64: 0.1 | H64: 71428.571 | M64: =L64+J64 -> 0 | N64: =M64*H64 -> 0
A65: B/G/630 304 | B65: FLOORINNG WORKS
B66: Delivery and installation all the types of floorinng including all required and specs | D66: LS | F66: 0.1 | H66: 71428.571 | M66: =L66+J66 -> 0 | N66: =M66*H66 -> 0
A67: B/G/630 305 | B67: ROOFING SYSTEM
B68: Protection layer for roofing including all requirement and accessories (As Specified) | D68: LS | F68: 0.13 | H68: 92857.1423 | M68: =L68+J68 -> 0 | N68: =M68*H68 -> 0
A69: B/G/630 306 | B69: ROLLING SHUTTER DOOR
B70: Delivery and erection of approved according to specs. | D70: LS | F70: 0.16 | H70: 114285.7136 | M70: =L70+J70 -> 0 | N70: =M70*H70 -> 0
A71: B/G/630 307 | B71: DOORS
B72: Delivery and erection of approved color aluminum doors. | D72: LS | F72: 0.03 | H72: 21428.5713 | M72: =L72+J72 -> 0 | N72: =M72*H72 -> 0
A73: B/G/630 308 | B73: WINDOWS
B74: Delivery and erection of approved color aluminum windows. | D74: LS | F74: 0.03 | H74: 21428.5713 | M74: =L74+J74 -> 0 | N74: =M74*H74 -> 0
A75: B/G/630 300 | B75: Total | F75: =SUM(F60:F74) -> 1 | M75: =SUM(M60:M74) -> 0 | N75: =SUM(N60:N74) -> 0
A76: B/G/630 400 | B76: ELECTRICAL WORK | N76: 58000
A77: B/G/630 401 | B77: SUPPLY
B78: supplying all necessary elecreical parts to compleat the work according to specs | F78: 0.25 | H78: 16581.6325 | M78: =L78+J78 -> 0 | N78: =M78*H78 -> 0
A79: B/G/630 402 | B79: FIXTUERES
B80: locate and fix all the electrical items according to drawings and specs | D80: LS | F80: 0.65 | H80: 43112.2445 | M80: =L80+J80 -> 0 | N80: =M80*H80 -> 0
A81: B/G/630 403 | B81: TEST
B82: all the necessary tests to handling the electrical work according to specs and industry assets. | D82: LS | F82: 0.1 | H82: 6632.653 | M82: =L82+J82 -> 0 | N82: =M82*H82 -> 0
A83: B/G/630 400 | B83: Total | F83: =SUM(F78:F82) -> 1 | M83: =SUM(M78:M82) -> 0 | N83: =SUM(N78:N82) -> 0
A84: B/G/630 500 | B84: PLUMBING WORK | N84: 144998.06
A85: B/G/630 501 | B85: SUPPLY AND INSTALL
B86: Supplying and installing all necessary embedded items and connections according to specs and drawings | D86: LS | F86: 0.7 | H86: 64625.848 | M86: =L86+J86 -> 0 | N86: =M86*H86 -> 0
A87: B/G/630 502 | B87: TEST
B88: all the necessary tests to handling the plumbing system according to specs and industry assets. | D88: LS | F88: 0.3 | H88: 27696.792 | M88: =L88+J88 -> 0 | N88: =M88*H88 -> 0
A89: B/G/630 500 | B89: Total | F89: =SUM(F86:F88) -> 1 | M89: =SUM(M86:M88) -> 0 | N89: =SUM(N86:N88) -> 0
A90: B/G/630 600 | B90: VENTILATION SYSTEM | N90: 60318.76
A91: B/G/630 601 | B91: SUPPLY
B92: supplying all necessary ventilation parts according to specs and drawings | F92: 0.6 | H92: 56443.146 | M92: =L92+J92 -> 0 | N92: =M92*H92 -> 0
A93: B/G/630 602 | B93: FIXTUERES
B94: locate and fix all the ventilation parts according to drawings and specs | D94: LS | F94: 0.2 | H94: 18814.382 | M94: =L94+J94 -> 0 | N94: =M94*H94 -> 0
A95: B/G/630 603 | B95: TEST
B96: all the necessary tests to handling the VENTILATION SYSTEM according to specs and industry assets. | D96: LS | F96: 0.2 | H96: 18814.382 | M96: =L96+J96 -> 0 | N96: =M96*H96 -> 0
A97: B/G/630 600 | B97: Total | F97: =SUM(F92:F96) -> 1 | M97: =SUM(M92:M96) -> 0 | N97: =SUM(N92:N96) -> 0
A98: B/G/630 700 | B98: FIRE DETECTION | N98: 26678.32847
A99: B/G/630 701 | B99: SUPPLY AND ERECT
B100: Supplying and erecting all necessary fire detection system parts and connections according to specs and drawings | D100: LS | F100: 0.7 | H100: 26190.479 | M100: =L100+J100 -> 0 | N100: =M100*H100 -> 0
A101: B/G/630 702 | B101: TEST
B102: all the necessary tests to handling the fire detection system according to specs and industry assets. | D102: LS | F102: 0.3 | H102: 11224.491 | M102: =L102+J102 -> 0 | N102: =M102*H102 -> 0
A103: B/G/630 700 | B103: Total | F103: =SUM(F100:F102) -> 1 | M103: =SUM(M100:M102) -> 0 | N103: =SUM(N100:N102) -> 0
A104: B/G/630 800 | B104: ELECTRICALLY OPERATED OVER HEAD CREAN | N104: 425247.8134
A105: B/G/630 801 | B105: SUPPLY
B106: Supplying over head crean according to specifications. | D106: LS | F106: 0.7 | H106: 255782.31 | M106: =L106+J106 -> 0 | N106: =M106*H106 -> 0
A107: B/G/630 802 | B107: ERECT AND OPERATE
B108: erecting the over head crean and operate it,including all the required tests. | D108: LS | F108: 0.3 | H108: 109620.99 | M108: =L108+J108 -> 0 | N108: =M108*H108 -> 0
A109: B/G/630 800 | B109: Total | F109: =SUM(F106:F108) -> 1 | M109: =SUM(M106:M108) -> 0 | N109: =SUM(N106:N108) -> 0
A110: B/G/630 900 | B110: R.C CABLE TRENCHES AND DUCTS | N110: 52199.22255
A111: B/G/630 901 | B111: PLAIN CONCRETE
B112: Supply and provide ready mix plain concrete grade 250 KG/m³, the clause includes form work, adding additives, pouring and curing,, and that concrete should be finished as per specs and industry assets. | D112: LS | F112: 0.1 | H112: 5830.904 | M112: =L112+J112 -> 0 | N112: =M112*H112 -> 0
A113: B/G/630 902 | B113: REINFORCEMENT CONCRETE
B114: Reinforced concrete for raft and walls with specified strength including all required and testing (As Specified) (Cement content not less than 350 Kg/m³) | D114: LS | F114: 0.5 | H114: 29154.52 | M114: =L114+J114 -> 0 | N114: =M114*H114 -> 0
A115: B/G/630 903 | B115: CHEQUERED PLATE COVER
B116: Delivery and erection of chequered plate cover including painting & all installation and handling requirement (As Specified) | D116: LS | F116: 0.15 | H116: 8746.356 | M116: =L116+J116 -> 0 | N116: =M116*H116 -> 0
A117: B/G/630 904 | B117: DUCTE
B118: making all the necessary ducte according to drawings and spics. | D118: LS | F118: 0.25 | H118: 14577.26 | M118: =L118+J118 -> 0 | N118: =M118*H118 -> 0
A119: B/G/630 900 | B119: Total | F119: =SUM(F112:F118) -> 1 | M119: =SUM(M112:M118) -> 0 | N119: =SUM(N112:N118) -> 0
A121: B/G/640 000 | B121: 66 KV GIS switch gear building (lump sum prices of items Nos. 640 100 through 640 900)
A122: B/G/640 100 | B122: Concrete Work | N122: 751700.6803
A123: B/G/640 101 | B123: EXCAVATION
B124: Excavation including Excavated material Transfer (As Specified) | D124: LS | F124: 0.06 | H124: 93673.4694 | J124: 0 | M124: =L124+J124 -> 0 | N124: =M124*H124 -> 0
A125: B/G/640 102 | B125: SOIL REPLACEMENT
B126: Supply and apply , SOIL REPLACEMENT According to the approved sieve analysis according to drawings &specs , the rate include leveling , water , compaction and compaction test to be compacted with relative compaction 98%. | D126: LS | F126: 0.08 | H126: 124897.9592 | M126: =L126+J126 -> 0 | N126: =M126*H126 -> 0
A127: B/G/640 103 | B127: Backfeling
B128: backfilling by approved fill material selected from excavation ,including compaction , the rate include compaction test according to specs. | C128: M3 | D128: LS | F128: 0.08 | H128: 124897.9592 | M128: =L128+J128 -> 0 | N128: =M128*H128 -> 0
A129: B/G/640 104 | B129: PLAIN CONCRETE
B130: Supply and provide ready mix plain concrete grade 250 KG/m³, the clause includes form work, adding additives, pouring and curing, to be separated from soil by 250 micron polyethylene proofing sheet, and that concrete should be finished as per specs and industry assets. | D130: LS | F130: 0.1 | H130: 156122.449 | M130: =L130+J130 -> 0 | N130: =M130*H130 -> 0
A131: B/G/640 105 | B131: REINFORCEMENT CONCRETE FOR FOOTINGS
B132: Reinforced concrete for foundation and semelle with specified strength including all required joints and testing (As Specified) (Cement content not less than 350 Kg/m³) | D132: LS | F132: 0.2 | H132: 312244.898 | M132: =L132+J132 -> 0 | N132: =M132*H132 -> 0
A133: B/G/640 106 | B133: REINFORCEMENT CONCRETE FOR COLUMNS AND BEAMS
B134: Reinforced concrete for columns and beams with specified strength including all required testing (As Specified) (Cement content not less than 350 Kg/m³) | D134: LS | F134: 0.15 | H134: 234183.6735 | M134: =L134+J134 -> 0 | N134: =M134*H134 -> 0
A135: B/G/640 107 | B135: REINFORCEMENT CONCRETE FOR ROOF SLAP
B136: Reinforced concrete for roof slab and beams with specified strength including faire faceand all required testing (As Specified) (Cement content not less than 350 Kg/m³) | D136: LS | F136: 0.2 | H136: 312244.898 | M136: =L136+J136 -> 0 | N136: =M136*H136 -> 0
A137: B/G/640 108 | B137: INSULLATION
B138: providing (supplying & painting) three coats of bituminous emulsion above concrete surface which in contact with soil as per drawings & specs. ( Up to zero level ) | D138: LS | F138: 0.05 | H138: 78061.2245 | M138: =L138+J138 -> 0 | N138: =M138*H138 -> 0
A139: B/G/640 109 | B139: SLAP ON GRADE
B140: applying all the reqaired layes of slap on grade according to drawings and specs. | D140: LS | F140: 0.08 | H140: 124897.9592 | M140: =L140+J140 -> 0 | N140: =M140*H140 -> 0
A141: B/G/640 100 | B141: Total | F141: =SUM(F124:F140) -> 1 | M141: =SUM(M124:M140) -> 0 | N141: =SUM(N124:N140) -> 0
A142: B/G/640 200 | B142: STRUCTURAL STEEL WORKS | N142: 66326.53061
A143: B/G/640 201 | B143: SUPPLYING
B144: supplying of complete steel structure (Anchor bolts; columns; embedded beams; embedded plates; fixed plates ) according to drawing and specs. | D144: LS | F144: 0.6 | H144: 48979.59 | M144: =L144+J144 -> 0 | N144: =M144*H144 -> 0
A145: B/G/640 202 | B145: ERECTION
B146: steel structure erection including welding (Anchor bolts; columns; embedded beams; embedded plates; fixed plates ) according to specs. | D146: LS | F146: 0.4 | H146: 32653.06 | M146: =L146+J146 -> 0 | N146: =M146*H146 -> 0
A147: B/G/640 200 | B147: Total | F147: =SUM(F144:F146) -> 1 | M147: =SUM(M144:M146) -> 0 | N147: =SUM(N144:N146) -> 0
A148: B/G/640 300 | B148: ARCHITECTURAL WORKS | N148: 574829.932
A149: B/G/640 301 | B149: MASONARY WORK
B150: supplying & constructing and installing)brick walls solid cemented 25cm thick.; the brick dimensions are 250*120*60 mm, the clause includes all lintels; scaffolding; dowels and wire mesh which connect brick with the concrete items before starting plaster works, the mortar contents is 350 kg of ordinary Portland cement for each cubic meter of sand, as per drawings & specs, and all necessary to finish works as per the technical industrial assets, the rate include lentel required. | D150: LS | F150: 0.3 | H150: 214285.713 | M150: =L150+J150 -> 0 | N150: =M150*H150 -> 0
A151: B/G/640 302 | B151: PLASTERING WORKS
B152: providing (supplying & plastering) for the cement mortar for walls, is including leveling; scaffolding; all necessary tools; the cement content in the mortar not less than 350 kg Ordinary Portland Cement for each cubic meter of sand, as per drawings & specs, and all necessary to finish works as per the technical industrial assets. . | D152: LS | F152: 0.15 | H152: 107142.8565 | M152: =L152+J152 -> 0 | N152: =M152*H152 -> 0
A153: B/G/640 303 | B153: PAINTING WORKS
B154: providing (supplying & paint) emulsion plastic washable paint for internal walls is including three putty coats; one fin mastic flat coat, and two final coat, the clause included all necessary tools and steel scaffolding as per drawings & specs, and all necessary to finish works as per the technical industrial assets, and the approved color samples. | D154: LS | F154: 0.1 | H154: 71428.571 | M154: =L154+J154 -> 0 | N154: =M154*H154 -> 0
A155: B/G/640 304 | B155: FLOORINNG WORKS
B156: Delivery and installation all the types of floorinng including all required and specs | D156: LS | F156: 0.1 | H156: 71428.571 | M156: =L156+J156 -> 0 | N156: =M156*H156 -> 0
A157: B/G/640 305 | B157: ROOFING SYSTEM
B158: Protection layer for roofing including all requirement and accessories (As Specified) | D158: LS | F158: 0.13 | H158: 92857.1423 | M158: =L158+J158 -> 0 | N158: =M158*H158 -> 0
A159: B/G/640 306 | B159: ROLLING SHUTTER DOOR
B160: Delivery and erection of approved according to specs. | D160: LS | F160: 0.16 | H160: 114285.7136 | M160: =L160+J160 -> 0 | N160: =M160*H160 -> 0
A161: B/G/640 307 | B161: DOORS
B162: Delivery and erection of approved color aluminum doors. | D162: LS | F162: 0.03 | H162: 21428.5713 | M162: =L162+J162 -> 0 | N162: =M162*H162 -> 0
A163: B/G/640 308 | B163: WINDOWS
B164: Delivery and erection of approved color aluminum windows. | D164: LS | F164: 0.03 | H164: 21428.5713 | M164: =L164+J164 -> 0 | N164: =M164*H164 -> 0
A165: B/G/640 300 | B165: Total | F165: =SUM(F150:F164) -> 1 | M165: =SUM(M150:M164) -> 0 | N165: =SUM(N150:N164) -> 0
A166: B/G/640 400 | B166: ELECTRICAL WORK | N166: 57256.55977
A167: B/G/640 401 | B167: SUPPLY
B168: supplying all necessary elecreical parts to compleat the work according to specs | F168: 0.25 | H168: 16581.6325 | M168: =L168+J168 -> 0 | N168: =M168*H168 -> 0
A169: B/G/640 402 | B169: FIXTUERES
B170: locate and fix all the electrical items according to drawings and specs | D170: LS | F170: 0.65 | H170: 43112.2445 | M170: =L170+J170 -> 0 | N170: =M170*H170 -> 0
A171: B/G/640 403 | B171: TEST
B172: all the necessary tests to handling the electrical work according to specs and industry assets. | D172: LS | F172: 0.1 | H172: 6632.653 | M172: =L172+J172 -> 0 | N172: =M172*H172 -> 0
A173: B/G/640 400 | B173: Total | F173: =SUM(F168:F172) -> 1 | M173: =SUM(M168:M172) -> 0 | N173: =SUM(N168:N172) -> 0
A174: B/G/640 500 | B174: PLUMBING WORK | N174: 92120.50534
A175: B/G/640 501 | B175: SUPPLY AND INSTALL
B176: Supplying and installing all necessary embedded items and connections according to specs and drawings | D176: LS | F176: 0.7 | H176: 64625.848 | M176: =L176+J176 -> 0 | N176: =M176*H176 -> 0
A177: B/G/640 502 | B177: TEST
B178: all the necessary tests to handling the plumbing system according to specs and industry assets. | D178: LS | F178: 0.3 | H178: 27696.792 | M178: =L178+J178 -> 0 | N178: =M178*H178 -> 0
A179: B/G/640 500 | B179: Total | F179: =SUM(F176:F178) -> 1 | M179: =SUM(M176:M178) -> 0 | N179: =SUM(N176:N178) -> 0
A180: B/G/640 600 | B180: VENTILATION SYSTEM | N180: 39293.48882
A181: B/G/640 601 | B181: SUPPLY
B182: supplying all necessary ventilation parts according to specs and drawings | F182: 0.6 | H182: 56443.146 | M182: =L182+J182 -> 0 | N182: =M182*H182 -> 0
A183: B/G/640 602 | B183: FIXTUERES
B184: locate and fix all the ventilation parts according to drawings and specs | D184: LS | F184: 0.2 | H184: 18814.382 | M184: =L184+J184 -> 0 | N184: =M184*H184 -> 0
A185: B/G/640 603 | B185: TEST
B186: all the necessary tests to handling the VENTILATION SYSTEM according to specs and industry assets. | D186: LS | F186: 0.2 | H186: 18814.382 | M186: =L186+J186 -> 0 | N186: =M186*H186 -> 0
A187: B/G/640 600 | B187: Total | F187: =SUM(F182:F186) -> 1 | M187: =SUM(M182:M186) -> 0 | N187: =SUM(N182:N186) -> 0
A188: B/G/640 700 | B188: FIRE DETECTION | N188: 18969.87366
A189: B/G/640 701 | B189: SUPPLY AND ERECT
B190: Supplying and erecting all necessary fire detection system parts and connections according to specs and drawings | D190: LS | F190: 0.7 | H190: 26190.479 | M190: =L190+J190 -> 0 | N190: =M190*H190 -> 0
A191: B/G/640 702 | B191: TEST
B192: all the necessary tests to handling the fire detection system according to specs and industry assets. | D192: LS | F192: 0.3 | H192: 11224.491 | M192: =L192+J192 -> 0 | N192: =M192*H192 -> 0
A193: B/G/640 700 | B193: Total | F193: =SUM(F190:F192) -> 1 | M193: =SUM(M190:M192) -> 0 | N193: =SUM(N190:N192) -> 0
A194: B/G/640 800 | B194: ELECTRICALLY OPERATED OVER HEAD CREAN | N194: 429543.2459
A195: B/G/640 801 | B195: SUPPLY
B196: Supplying over head crean according to specifications. | D196: LS | F196: 0.7 | H196: 255782.31 | M196: =L196+J196 -> 0 | N196: =M196*H196 -> 0
A197: B/G/640 802 | B197: ERECT AND OPERATE
B198: erecting the over head crean and operate it,including all the required tests. | D198: LS | F198: 0.3 | H198: 109620.99 | M198: =L198+J198 -> 0 | N198: =M198*H198 -> 0
A199: B/G/640 800 | B199: Total | F199: =SUM(F196:F198) -> 1 | M199: =SUM(M196:M198) -> 0 | N199: =SUM(N196:N198) -> 0
A200: B/G/640 900 | B200: R.C CABLE TRENCHES AND DUCTS | N200: 33163.26531
A201: B/G/640 901 | B201: PLAIN CONCRETE
B202: Supply and provide ready mix plain concrete grade 250 KG/m³, the clause includes form work, adding additives, pouring and curing,, and that concrete should be finished as per specs and industry assets. | D202: LS | F202: 0.1 | H202: 5830.904 | M202: =L202+J202 -> 0 | N202: =M202*H202 -> 0
A203: B/G/640 902 | B203: REINFORCEMENT CONCRETE
... 293 more rows

Sheet civil (3) (hidden)
A3: Project : | B3: Tameya 220/66/11KV S/S
A4: Code | B4: Item Description | D4: Unit | F4: % Item Weight | G4: % Total Contract | H4: Unit Price L.E. | J4: Previous | L4: Current | M4: TOTAL | N4: Total Price L.E.
I5: % | J5: EGP | K5: % | L5: EGP
N6: =N7+N306 -> 18254966
A7: B/G/600 000 | B7: Civil Works: | D7: LS | N7: 9454398.45
A8: B/G/620 000 | B8: 220 GIS OUTDOOR EQUIPMENTS, RECEIVING GANTREES, SUPPORTS OF GIP CONNECTION, NETURAL POINTS AND CABLE SEALING ENDS. (Lump sum prices of items # 520 100.... 520 200).
A9: B/G/620 100 | B9: Concrete Work | N9: 379008.75
A10: B/G/620 101 | B10: EXCAVATION
B11: Excavation including Excavated material Transfer (As Specified) | D11: LS | F11: 0.1 | H11: =F11*N9 -> 37900.875 | M11: =L11+J11 -> 0 | N11: =M11*H11 -> 0 | O11: 0.1 | Q11: 694849.37 | S11: 69484.937 | U11: 69484.937
A12: B/G/620 102 | B12: SOIL REPLACEMENT
B13: Supply and apply , SOIL REPLACEMENT According to the approved sieve analysis according to drawings &specs , the rate include leveling , water , compaction and compaction test to be compacted with relative compaction 98%. | D13: LS | F13: 0.1 | H13: =F13*N9 -> 37900.875 | M13: =L13+J13 -> 0 | N13: =M13*H13 -> 0 | O13: 0.1 | S13: 69484.937 | U13: 69484.937
A14: B/G/620 103 | B14: Backfeling
B15: backfilling by approved fill material selected from excavation ,including compaction , the rate include compaction test according to specs. | C15: M3 | D15: LS | F15: 0.12 | H15: =F15*N9 -> 45481.05 | M15: =L15+J15 -> 0 | N15: =M15*H15 -> 0 | O15: 0.12 | S15: 83381.9244 | U15: 83381.9244
A16: B/G/620 104 | B16: PLAIN CONCRETE
B17: Supply and provide ready mix plain concrete grade 250 KG/m³, the clause includes form work, adding additives, pouring and curing, to be separated from soil by 250 micron polyethylene proofing sheet, and that concrete should be finished as per specs and industry assets. | D17: LS | F17: 0.15 | H17: 104227.4055 | M17: =L17+J17 -> 0 | N17: =M17*H17 -> 0 | O17: 0.15 | S17: 104227.4055 | U17: 104227.4055
A18: B/G/620 105 | B18: REINFORCEMENT CONCRETE
B19: Reinforced concrete for foundation and semelle with specified strength including all required joints and testing (As Specified) (Cement content not less than 350 Kg/m³) | D19: LS | F19: 0.45 | H19: 312682.2165 | M19: =L19+J19 -> 0 | N19: =M19*H19 -> 0 | O19: 0.45 | S19: 312682.2165 | U19: 312682.2165
A20: B/G/620 106 | B20: INSULLATION
B21: providing (supplying & painting) three coats of bituminous emulsion above concrete surface which in contact with soil as per drawings & specs. | D21: LS | F21: 0.08 | H21: 55587.9496 | M21: =L21+J21 -> 0 | N21: =M21*H21 -> 0 | O21: 0.08 | S21: 55587.9496 | U21: 55587.9496
A22: B/G/620 100 | B22: Total | F22: =SUM(F11:F21) -> 1 | M22: =SUM(M11:M21) -> 0 | N22: =SUM(N11:N21) -> 0
A23: B/G 620 200 | B23: STRUCTURAL STEEL WORKS | N23: 1137026.24 | Q23: =SUM(#REF!) -> 
A24: B/G/620 201 | B24: SUPPLYING
B25: supplying of complete steel structure (Anchor bolts; columns; embedded beams; embedded plates; fixed plates ) according to drawing and specs. | D25: LS | F25: 0.6 | H25: 571428.57 | M25: =L25+J25 -> 0 | N25: =M25*H25 -> 0 | O25: 0.6 | Q25: 952380.95 | S25: 571428.57 | U25: 571428.57
A26: B/G/620 202 | B26: ERECTION
B27: steel structure erection including welding (Anchor bolts; columns; embedded beams; embedded plates; fixed plates ) according to specs. | D27: LS | F27: 0.3 | H27: 285714.285 | M27: =L27+J27 -> 0 | N27: =M27*H27 -> 0 | O27: 0.3 | S27: 285714.285 | U27: 285714.285
A28: B/G/620 203 | B28: GROUTING
B29: Supply and apply Non shrink grout (As Specified) | D29: LS | F29: 0.1 | H29: 95238.095 | M29: =L29+J29 -> 0 | N29: =M29*H29 -> 0 | O29: 0.1 | S29: 95238.095 | U29: 95238.095
A30: B/G/620 200 | B30: Total | F30: =SUM(F25:F29) -> 1 | M30: =SUM(M25:M29) -> 0 | N30: =SUM(N25:N29) -> 0 | Q30: =SUM(#REF!) -> 
A31: B/G/630 000 | B31: 220 KV GIS switch gear building (lump sum prices of items Nos. 630 100 through 630 900) | Q31: =SUM(#REF!) -> 
A32: B/G/630 100 | B32: Concrete Work | N32: 1183189.5
A33: B/G/630 101 | B33: EXCAVATION
B34: Excavation including Excavated material Transfer (As Specified) | D34: LS | F34: 0.06 | H34: 93673.4694 | M34: =L34+J34 -> 0 | N34: =M34*H34 -> 0 | O34: 0.06 | Q34: 1561224.49 | S34: 93673.4694 | U34: 93673.4694
A35: B/G/630 102 | B35: SOIL REPLACEMENT
B36: Supply and apply , SOIL REPLACEMENT According to the approved sieve analysis according to drawings &specs , the rate include leveling , water , compaction and compaction test to be compacted with relative compaction 98%. | D36: LS | F36: 0.08 | H36: 124897.9592 | M36: =L36+J36 -> 0 | N36: =M36*H36 -> 0 | O36: 0.08 | S36: 124897.9592 | U36: 124897.9592
A37: B/G/630 103 | B37: Backfeling
B38: backfilling by approved fill material selected from excavation ,including compaction , the rate include compaction test according to specs. | C38: M3 | D38: LS | F38: 0.08 | H38: 124897.9592 | M38: =L38+J38 -> 0 | N38: =M38*H38 -> 0 | O38: 0.08 | S38: 124897.9592 | U38: 124897.9592
A39: B/G/630 104 | B39: PLAIN CONCRETE
B40: Supply and provide ready mix plain concrete grade 250 KG/m³, the clause includes form work, adding additives, pouring and curing, to be separated from soil by 250 micron polyethylene proofing sheet, and that concrete should be finished as per specs and industry assets. | D40: LS | F40: 0.1 | H40: 156122.449 | M40: =L40+J40 -> 0 | N40: =M40*H40 -> 0 | O40: 0.1 | S40: 156122.449 | U40: 156122.449
A41: B/G/630 105 | B41: REINFORCEMENT CONCRETE FOR FOOTINGS
B42: Reinforced concrete for foundation and semelle with specified strength including all required joints and testing (As Specified) (Cement content not less than 350 Kg/m³) | D42: LS | F42: 0.2 | H42: 312244.898 | M42: =L42+J42 -> 0 | N42: =M42*H42 -> 0 | O42: 0.2 | S42: 312244.898 | U42: 312244.898
A43: B/G/630 106 | B43: REINFORCEMENT CONCRETE FOR COLUMNS AND BEAMS
B44: Reinforced concrete for columns and beams with specified strength including all required testing (As Specified) (Cement content not less than 350 Kg/m³) | D44: LS | F44: 0.15 | H44: 234183.6735 | M44: =L44+J44 -> 0 | N44: =M44*H44 -> 0 | O44: 0.15 | S44: 234183.6735 | U44: 234183.6735
A45: B/G/630 107 | B45: REINFORCEMENT CONCRETE FOR ROOF SLAP
B46: Reinforced concrete for roof slab and beams with specified strength including faire faceand all required testing (As Specified) (Cement content not less than 350 Kg/m³) | D46: LS | F46: 0.2 | H46: 312244.898 | M46: =L46+J46 -> 0 | N46: =M46*H46 -> 0 | O46: 0.2 | S46: 312244.898 | U46: 312244.898
A47: B/G/630 108 | B47: INSULLATION
B48: providing (supplying & painting) three coats of bituminous emulsion above concrete surface which in contact with soil as per drawings & specs. ( Up to zero level ) | D48: LS | F48: 0.05 | H48: 78061.2245 | M48: =L48+J48 -> 0 | N48: =M48*H48 -> 0 | O48: 0.05 | S48: 78061.2245 | U48: 78061.2245
A49: B/G/630 109 | B49: SLAP ON GRADE
B50: applying all the reqaired layes of slap on grade according to drawings and specs. | D50: LS | F50: 0.08 | H50: 124897.9592 | M50: =L50+J50 -> 0 | N50: =M50*H50 -> 0 | O50: 0.08 | S50: 124897.9592 | U50: 124897.9592
A51: B/G/630 100 | B51: Total | F51: =SUM(F34:F50) -> 1 | M51: =SUM(M34:M50) -> 0 | N51: =SUM(N34:N50) -> 0
A52: B/G/630 200 | B52: STRUCTURAL STEEL WORKS | N52: 104398.45 | Q52: =SUM(#REF!) -> 
A53: B/G/620 201 | B53: SUPPLYING
B54: supplying of complete steel structure (Anchor bolts; columns; embedded beams; embedded plates; fixed plates ) according to drawing and specs. | D54: LS | F54: 0.6 | H54: 48979.59 | M54: =L54+J54 -> 0 | N54: =M54*H54 -> 0 | O54: 0.6 | Q54: 81632.65 | S54: 48979.59 | U54: 48979.59
A55: B/G/630 202 | B55: ERECTION
B56: steel structure erection including welding (Anchor bolts; columns; embedded beams; embedded plates; fixed plates ) according to specs. | D56: LS | F56: 0.4 | H56: 32653.06 | M56: =L56+J56 -> 0 | N56: =M56*H56 -> 0 | O56: 0.4 | S56: 32653.06 | U56: 32653.06
A57: B/G/630 200 | B57: Total | F57: =SUM(F54:F56) -> 1 | M57: =SUM(M54:M56) -> 0 | N57: =SUM(N54:N56) -> 0 | Q57: =SUM(#REF!) -> 
A58: B/G/630 300 | B58: ARCHITECTURAL WORKS | N58: 904793.97 | Q58: =SUM(#REF!) -> 
A59: B/G/630 301 | B59: MASONARY WORK | Q59: 714285.71
B60: supplying & constructing and installing)brick walls solid cemented 25cm thick.; the brick dimensions are 250*120*60 mm, the clause includes all lintels; scaffolding; dowels and wire mesh which connect brick with the concrete items before starting plaster works, the mortar contents is 350 kg of ordinary Portland cement for each cubic meter of sand, as per drawings & specs, and all necessary to finish works as per the technical industrial assets, the rate include lentel required. | D60: LS | F60: 0.3 | H60: 214285.713 | M60: =L60+J60 -> 0 | N60: =M60*H60 -> 0 | O60: 0.3 | S60: 214285.713 | U60: 214285.713
A61: B/G/630 302 | B61: PLASTERING WORKS
B62: providing (supplying & plastering) for the cement mortar for walls, is including leveling; scaffolding; all necessary tools; the cement content in the mortar not less than 350 kg Ordinary Portland Cement for each cubic meter of sand, as per drawings & specs, and all necessary to finish works as per the technical industrial assets. . | D62: LS | F62: 0.15 | H62: 107142.8565 | M62: =L62+J62 -> 0 | N62: =M62*H62 -> 0 | O62: 0.15 | S62: 107142.8565 | U62: 107142.8565
A63: B/G/630 303 | B63: PAINTING WORKS
B64: providing (supplying & paint) emulsion plastic washable paint for internal walls is including three putty coats; one fin mastic flat coat, and two final coat, the clause included all necessary tools and steel scaffolding as per drawings & specs, and all necessary to finish works as per the technical industrial assets, and the approved color samples. | D64: LS | F64: 0.1 | H64: 71428.571 | M64: =L64+J64 -> 0 | N64: =M64*H64 -> 0 | O64: 0.1 | S64: 71428.571 | U64: 71428.571
A65: B/G/630 304 | B65: FLOORINNG WORKS
B66: Delivery and installation all the types of floorinng including all required and specs | D66: LS | F66: 0.1 | H66: 71428.571 | M66: =L66+J66 -> 0 | N66: =M66*H66 -> 0 | O66: 0.1 | S66: 71428.571 | U66: 71428.571
A67: B/G/630 305 | B67: ROOFING SYSTEM
B68: Protection layer for roofing including all requirement and accessories (As Specified) | D68: LS | F68: 0.13 | H68: 92857.1423 | M68: =L68+J68 -> 0 | N68: =M68*H68 -> 0 | O68: 0.13 | S68: 92857.1423 | U68: 92857.1423
A69: B/G/630 306 | B69: ROLLING SHUTTER DOOR
B70: Delivery and erection of approved according to specs. | D70: LS | F70: 0.16 | H70: 114285.7136 | M70: =L70+J70 -> 0 | N70: =M70*H70 -> 0 | O70: 0.16 | S70: 114285.7136 | U70: 114285.7136
A71: B/G/630 307 | B71: DOORS
B72: Delivery and erection of approved color aluminum doors. | D72: LS | F72: 0.03 | H72: 21428.5713 | M72: =L72+J72 -> 0 | N72: =M72*H72 -> 0 | O72: 0.03 | S72: 21428.5713 | U72: 21428.5713
A73: B/G/630 308 | B73: WINDOWS
B74: Delivery and erection of approved color aluminum windows. | D74: LS | F74: 0.03 | H74: 21428.5713 | M74: =L74+J74 -> 0 | N74: =M74*H74 -> 0 | O74: 0.03 | S74: 21428.5713 | U74: 21428.5713
A75: B/G/630 300 | B75: Total | F75: =SUM(F60:F74) -> 1 | M75: =SUM(M60:M74) -> 0 | N75: =SUM(N60:N74) -> 0 | Q75: =SUM(#REF!) -> 
A76: B/G/630 400 | B76: ELECTRICAL WORK | N76: 58000 | Q76: =SUM(#REF!) -> 
A77: B/G/630 401 | B77: SUPPLY
B78: supplying all necessary elecreical parts to compleat the work according to specs | F78: 0.25 | H78: 16581.6325 | M78: =L78+J78 -> 0 | N78: =M78*H78 -> 0 | O78: 0.25 | Q78: 66326.53 | S78: 16581.6325 | U78: 16581.6325
A79: B/G/630 402 | B79: FIXTUERES
B80: locate and fix all the electrical items according to drawings and specs | D80: LS | F80: 0.65 | H80: 43112.2445 | M80: =L80+J80 -> 0 | N80: =M80*H80 -> 0 | O80: 0.65 | S80: 43112.2445 | U80: 43112.2445
A81: B/G/630 403 | B81: TEST
B82: all the necessary tests to handling the electrical work according to specs and industry assets. | D82: LS | F82: 0.1 | H82: 6632.653 | M82: =L82+J82 -> 0 | N82: =M82*H82 -> 0 | O82: 0.1 | S82: 6632.653 | U82: 6632.653
A83: B/G/630 400 | B83: Total | F83: =SUM(F78:F82) -> 1 | M83: =SUM(M78:M82) -> 0 | N83: =SUM(N78:N82) -> 0 | Q83: =SUM(#REF!) -> 
A84: B/G/630 500 | B84: PLUMBING WORK | N84: 144998.06 | Q84: =SUM(#REF!) -> 
A85: B/G/630 501 | B85: SUPPLY AND INSTALL | Q85: 92322.64
B86: Supplying and installing all necessary embedded items and connections according to specs and drawings | D86: LS | F86: 0.7 | H86: 64625.848 | M86: =L86+J86 -> 0 | N86: =M86*H86 -> 0 | O86: 0.7 | S86: 64625.848 | U86: 64625.848
A87: B/G/630 502 | B87: TEST
B88: all the necessary tests to handling the plumbing system according to specs and industry assets. | D88: LS | F88: 0.3 | H88: 27696.792 | M88: =L88+J88 -> 0 | N88: =M88*H88 -> 0 | O88: 0.3 | S88: 27696.792 | U88: 27696.792
A89: B/G/630 500 | B89: Total | F89: =SUM(F86:F88) -> 1 | M89: =SUM(M86:M88) -> 0 | N89: =SUM(N86:N88) -> 0 | Q89: =SUM(#REF!) -> 
A90: B/G/630 600 | B90: VENTILATION SYSTEM | N90: 60318.76 | Q90: =SUM(#REF!) -> 
A91: B/G/630 601 | B91: SUPPLY | Q91: 94071.91
B92: supplying all necessary ventilation parts according to specs and drawings | F92: 0.6 | H92: 56443.146 | M92: =L92+J92 -> 0 | N92: =M92*H92 -> 0 | O92: 0.6 | S92: 56443.146 | U92: 56443.146
A93: B/G/630 602 | B93: FIXTUERES
B94: locate and fix all the ventilation parts according to drawings and specs | D94: LS | F94: 0.2 | H94: 18814.382 | M94: =L94+J94 -> 0 | N94: =M94*H94 -> 0 | O94: 0.2 | S94: 18814.382 | U94: 18814.382
A95: B/G/630 603 | B95: TEST
B96: all the necessary tests to handling the VENTILATION SYSTEM according to specs and industry assets. | D96: LS | F96: 0.2 | H96: 18814.382 | M96: =L96+J96 -> 0 | N96: =M96*H96 -> 0 | O96: 0.2 | S96: 18814.382 | U96: 18814.382
A97: B/G/630 600 | B97: Total | F97: =SUM(F92:F96) -> 1 | M97: =SUM(M92:M96) -> 0 | N97: =SUM(N92:N96) -> 0 | Q97: =SUM(#REF!) -> 
A98: B/G/630 700 | B98: FIRE DETECTION | N98: 26678.32847 | Q98: =SUM(#REF!) -> 
A99: B/G/630 701 | B99: SUPPLY AND ERECT | Q99: 37414.97
B100: Supplying and erecting all necessary fire detection system parts and connections according to specs and drawings | D100: LS | F100: 0.7 | H100: 26190.479 | M100: =L100+J100 -> 0 | N100: =M100*H100 -> 0 | O100: 0.7 | S100: 26190.479 | U100: 26190.479
A101: B/G/630 702 | B101: TEST
B102: all the necessary tests to handling the fire detection system according to specs and industry assets. | D102: LS | F102: 0.3 | H102: 11224.491 | M102: =L102+J102 -> 0 | N102: =M102*H102 -> 0 | O102: 0.3 | S102: 11224.491 | U102: 11224.491
A103: B/G/630 700 | B103: Total | F103: =SUM(F100:F102) -> 1 | M103: =SUM(M100:M102) -> 0 | N103: =SUM(N100:N102) -> 0 | Q103: =SUM(#REF!) -> 
A104: B/G/630 800 | B104: ELECTRICALLY OPERATED OVER HEAD CREAN | N104: 425247.8134 | Q104: =SUM(#REF!) -> 
A105: B/G/630 801 | B105: SUPPLY | Q105: 365403.3
B106: Supplying over head crean according to specifications. | D106: LS | F106: 0.7 | H106: 255782.31 | M106: =L106+J106 -> 0 | N106: =M106*H106 -> 0 | O106: 0.7 | S106: 255782.31 | U106: 255782.31
A107: B/G/630 802 | B107: ERECT AND OPERATE
B108: erecting the over head crean and operate it,including all the required tests. | D108: LS | F108: 0.3 | H108: 109620.99 | M108: =L108+J108 -> 0 | N108: =M108*H108 -> 0 | O108: 0.3 | S108: 109620.99 | U108: 109620.99
A109: B/G/630 800 | B109: Total | F109: =SUM(F106:F108) -> 1 | M109: =SUM(M106:M108) -> 0 | N109: =SUM(N106:N108) -> 0 | Q109: =SUM(#REF!) -> 
A110: B/G/630 900 | B110: R.C CABLE TRENCHES AND DUCTS | N110: 52199.22255 | Q110: =SUM(#REF!) -> 
A111: B/G/630 901 | B111: PLAIN CONCRETE | Q111: 58309.04
B112: Supply and provide ready mix plain concrete grade 250 KG/m³, the clause includes form work, adding additives, pouring and curing,, and that concrete should be finished as per specs and industry assets. | D112: LS | F112: 0.1 | H112: 5830.904 | M112: =L112+J112 -> 0 | N112: =M112*H112 -> 0 | O112: 0.1 | S112: 5830.904 | U112: 5830.904
A113: B/G/630 902 | B113: REINFORCEMENT CONCRETE
B114: Reinforced concrete for raft and walls with specified strength including all required and testing (As Specified) (Cement content not less than 350 Kg/m³) | D114: LS | F114: 0.5 | H114: 29154.52 | M114: =L114+J114 -> 0 | N114: =M114*H114 -> 0 | O114: 0.5 | S114: 29154.52 | U114: 29154.52
A115: B/G/630 903 | B115: CHEQUERED PLATE COVER
B116: Delivery and erection of chequered plate cover including painting & all installation and handling requirement (As Specified) | D116: LS | F116: 0.15 | H116: 8746.356 | M116: =L116+J116 -> 0 | N116: =M116*H116 -> 0 | O116: 0.15 | S116: 8746.356 | U116: 8746.356
A117: B/G/630 904 | B117: DUCTE
B118: making all the necessary ducte according to drawings and spics. | D118: LS | F118: 0.25 | H118: 14577.26 | M118: =L118+J118 -> 0 | N118: =M118*H118 -> 0 | O118: 0.25 | S118: 14577.26 | U118: 14577.26
A119: B/G/630 900 | B119: Total | F119: =SUM(F112:F118) -> 1 | M119: =SUM(M112:M118) -> 0 | N119: =SUM(N112:N118) -> 0 | Q119: =SUM(#REF!) -> 
A121: B/G/640 000 | B121: 66 KV GIS switch gear building (lump sum prices of items Nos. 640 100 through 640 900) | Q121: =SUM(#REF!) -> 
A122: B/G/640 100 | B122: Concrete Work | N122: 751700.6803
A123: B/G/640 101 | B123: EXCAVATION
B124: Excavation including Excavated material Transfer (As Specified) | D124: LS | F124: 0.06 | H124: 93673.4694 | J124: 0 | M124: =L124+J124 -> 0 | N124: =M124*H124 -> 0 | O124: 0.06 | Q124: 1561224.49 | S124: 93673.4694 | U124: 93673.4694
A125: B/G/640 102 | B125: SOIL REPLACEMENT
B126: Supply and apply , SOIL REPLACEMENT According to the approved sieve analysis according to drawings &specs , the rate include leveling , water , compaction and compaction test to be compacted with relative compaction 98%. | D126: LS | F126: 0.08 | H126: 124897.9592 | M126: =L126+J126 -> 0 | N126: =M126*H126 -> 0 | O126: 0.08 | S126: 124897.9592 | U126: 124897.9592
A127: B/G/640 103 | B127: Backfeling
B128: backfilling by approved fill material selected from excavation ,including compaction , the rate include compaction test according to specs. | C128: M3 | D128: LS | F128: 0.08 | H128: 124897.9592 | M128: =L128+J128 -> 0 | N128: =M128*H128 -> 0 | O128: 0.08 | S128: 124897.9592 | U128: 124897.9592
A129: B/G/640 104 | B129: PLAIN CONCRETE
B130: Supply and provide ready mix plain concrete grade 250 KG/m³, the clause includes form work, adding additives, pouring and curing, to be separated from soil by 250 micron polyethylene proofing sheet, and that concrete should be finished as per specs and industry assets. | D130: LS | F130: 0.1 | H130: 156122.449 | M130: =L130+J130 -> 0 | N130: =M130*H130 -> 0 | O130: 0.1 | S130: 156122.449 | U130: 156122.449
A131: B/G/640 105 | B131: REINFORCEMENT CONCRETE FOR FOOTINGS
B132: Reinforced concrete for foundation and semelle with specified strength including all required joints and testing (As Specified) (Cement content not less than 350 Kg/m³) | D132: LS | F132: 0.2 | H132: 312244.898 | M132: =L132+J132 -> 0 | N132: =M132*H132 -> 0 | O132: 0.2 | S132: 312244.898 | U132: 312244.898
A133: B/G/640 106 | B133: REINFORCEMENT CONCRETE FOR COLUMNS AND BEAMS
B134: Reinforced concrete for columns and beams with specified strength including all required testing (As Specified) (Cement content not less than 350 Kg/m³) | D134: LS | F134: 0.15 | H134: 234183.6735 | M134: =L134+J134 -> 0 | N134: =M134*H134 -> 0 | O134: 0.15 | S134: 234183.6735 | U134: 234183.6735
A135: B/G/640 107 | B135: REINFORCEMENT CONCRETE FOR ROOF SLAP
B136: Reinforced concrete for roof slab and beams with specified strength including faire faceand all required testing (As Specified) (Cement content not less than 350 Kg/m³) | D136: LS | F136: 0.2 | H136: 312244.898 | M136: =L136+J136 -> 0 | N136: =M136*H136 -> 0 | O136: 0.2 | S136: 312244.898 | U136: 312244.898
A137: B/G/640 108 | B137: INSULLATION
B138: providing (supplying & painting) three coats of bituminous emulsion above concrete surface which in contact with soil as per drawings & specs. ( Up to zero level ) | D138: LS | F138: 0.05 | H138: 78061.2245 | M138: =L138+J138 -> 0 | N138: =M138*H138 -> 0 | O138: 0.05 | S138: 78061.2245 | U138: 78061.2245
A139: B/G/640 109 | B139: SLAP ON GRADE
B140: applying all the reqaired layes of slap on grade according to drawings and specs. | D140: LS | F140: 0.08 | H140: 124897.9592 | M140: =L140+J140 -> 0 | N140: =M140*H140 -> 0 | O140: 0.08 | S140: 124897.9592 | U140: 124897.9592
A141: B/G/640 100 | B141: Total | F141: =SUM(F124:F140) -> 1 | M141: =SUM(M124:M140) -> 0 | N141: =SUM(N124:N140) -> 0
A142: B/G/640 200 | B142: STRUCTURAL STEEL WORKS | N142: 66326.53061 | Q142: =SUM(#REF!) -> 
A143: B/G/640 201 | B143: SUPPLYING
B144: supplying of complete steel structure (Anchor bolts; columns; embedded beams; embedded plates; fixed plates ) according to drawing and specs. | D144: LS | F144: 0.6 | H144: 48979.59 | M144: =L144+J144 -> 0 | N144: =M144*H144 -> 0 | O144: 0.6 | Q144: 81632.65 | S144: 48979.59 | U144: 48979.59
A145: B/G/640 202 | B145: ERECTION
B146: steel structure erection including welding (Anchor bolts; columns; embedded beams; embedded plates; fixed plates ) according to specs. | D146: LS | F146: 0.4 | H146: 32653.06 | M146: =L146+J146 -> 0 | N146: =M146*H146 -> 0 | O146: 0.4 | S146: 32653.06 | U146: 32653.06
A147: B/G/640 200 | B147: Total | F147: =SUM(F144:F146) -> 1 | M147: =SUM(M144:M146) -> 0 | N147: =SUM(N144:N146) -> 0 | Q147: =SUM(#REF!) -> 
A148: B/G/640 300 | B148: ARCHITECTURAL WORKS | N148: 574829.932 | Q148: =SUM(#REF!) -> 
A149: B/G/640 301 | B149: MASONARY WORK | Q149: 714285.71
B150: supplying & constructing and installing)brick walls solid cemented 25cm thick.; the brick dimensions are 250*120*60 mm, the clause includes all lintels; scaffolding; dowels and wire mesh which connect brick with the concrete items before starting plaster works, the mortar contents is 350 kg of ordinary Portland cement for each cubic meter of sand, as per drawings & specs, and all necessary to finish works as per the technical industrial assets, the rate include lentel required. | D150: LS | F150: 0.3 | H150: 214285.713 | M150: =L150+J150 -> 0 | N150: =M150*H150 -> 0 | O150: 0.3 | S150: 214285.713 | U150: 214285.713
A151: B/G/640 302 | B151: PLASTERING WORKS
B152: providing (supplying & plastering) for the cement mortar for walls, is including leveling; scaffolding; all necessary tools; the cement content in the mortar not less than 350 kg Ordinary Portland Cement for each cubic meter of sand, as per drawings & specs, and all necessary to finish works as per the technical industrial assets. . | D152: LS | F152: 0.15 | H152: 107142.8565 | M152: =L152+J152 -> 0 | N152: =M152*H152 -> 0 | O152: 0.15 | S152: 107142.8565 | U152: 107142.8565
A153: B/G/640 303 | B153: PAINTING WORKS
B154: providing (supplying & paint) emulsion plastic washable paint for internal walls is including three putty coats; one fin mastic flat coat, and two final coat, the clause included all necessary tools and steel scaffolding as per drawings & specs, and all necessary to finish works as per the technical industrial assets, and the approved color samples. | D154: LS | F154: 0.1 | H154: 71428.571 | M154: =L154+J154 -> 0 | N154: =M154*H154 -> 0 | O154: 0.1 | S154: 71428.571 | U154: 71428.571
A155: B/G/640 304 | B155: FLOORINNG WORKS
B156: Delivery and installation all the types of floorinng including all required and specs | D156: LS | F156: 0.1 | H156: 71428.571 | M156: =L156+J156 -> 0 | N156: =M156*H156 -> 0 | O156: 0.1 | S156: 71428.571 | U156: 71428.571
A157: B/G/640 305 | B157: ROOFING SYSTEM
B158: Protection layer for roofing including all requirement and accessories (As Specified) | D158: LS | F158: 0.13 | H158: 92857.1423 | M158: =L158+J158 -> 0 | N158: =M158*H158 -> 0 | O158: 0.13 | S158: 92857.1423 | U158: 92857.1423
A159: B/G/640 306 | B159: ROLLING SHUTTER DOOR
B160: Delivery and erection of approved according to specs. | D160: LS | F160: 0.16 | H160: 114285.7136 | M160: =L160+J160 -> 0 | N160: =M160*H160 -> 0 | O160: 0.16 | S160: 114285.7136 | U160: 114285.7136
A161: B/G/640 307 | B161: DOORS
B162: Delivery and erection of approved color aluminum doors. | D162: LS | F162: 0.03 | H162: 21428.5713 | M162: =L162+J162 -> 0 | N162: =M162*H162 -> 0 | O162: 0.03 | S162: 21428.5713 | U162: 21428.5713
A163: B/G/640 308 | B163: WINDOWS
B164: Delivery and erection of approved color aluminum windows. | D164: LS | F164: 0.03 | H164: 21428.5713 | M164: =L164+J164 -> 0 | N164: =M164*H164 -> 0 | O164: 0.03 | S164: 21428.5713 | U164: 21428.5713
A165: B/G/640 300 | B165: Total | F165: =SUM(F150:F164) -> 1 | M165: =SUM(M150:M164) -> 0 | N165: =SUM(N150:N164) -> 0 | Q165: =SUM(#REF!) -> 
A166: B/G/640 400 | B166: ELECTRICAL WORK | N166: 57256.55977 | Q166: =SUM(#REF!) -> 
A167: B/G/640 401 | B167: SUPPLY
B168: supplying all necessary elecreical parts to compleat the work according to specs | F168: 0.25 | H168: 16581.6325 | M168: =L168+J168 -> 0 | N168: =M168*H168 -> 0 | O168: 0.25 | Q168: 66326.53 | S168: 16581.6325 | U168: 16581.6325
A169: B/G/640 402 | B169: FIXTUERES
B170: locate and fix all the electrical items according to drawings and specs | D170: LS | F170: 0.65 | H170: 43112.2445 | M170: =L170+J170 -> 0 | N170: =M170*H170 -> 0 | O170: 0.65 | S170: 43112.2445 | U170: 43112.2445
A171: B/G/640 403 | B171: TEST
B172: all the necessary tests to handling the electrical work according to specs and industry assets. | D172: LS | F172: 0.1 | H172: 6632.653 | M172: =L172+J172 -> 0 | N172: =M172*H172 -> 0 | O172: 0.1 | S172: 6632.653 | U172: 6632.653
A173: B/G/640 400 | B173: Total | F173: =SUM(F168:F172) -> 1 | M173: =SUM(M168:M172) -> 0 | N173: =SUM(N168:N172) -> 0 | Q173: =SUM(#REF!) -> 
A174: B/G/640 500 | B174: PLUMBING WORK | N174: 92120.50534 | Q174: =SUM(#REF!) -> 
A175: B/G/640 501 | B175: SUPPLY AND INSTALL | Q175: 92322.64
B176: Supplying and installing all necessary embedded items and connections according to specs and drawings | D176: LS | F176: 0.7 | H176: 64625.848 | M176: =L176+J176 -> 0 | N176: =M176*H176 -> 0 | O176: 0.7 | S176: 64625.848 | U176: 64625.848
A177: B/G/640 502 | B177: TEST
B178: all the necessary tests to handling the plumbing system according to specs and industry assets. | D178: LS | F178: 0.3 | H178: 27696.792 | M178: =L178+J178 -> 0 | N178: =M178*H178 -> 0 | O178: 0.3 | S178: 27696.792 | U178: 27696.792
A179: B/G/640 500 | B179: Total | F179: =SUM(F176:F178) -> 1 | M179: =SUM(M176:M178) -> 0 | N179: =SUM(N176:N178) -> 0 | Q179: =SUM(#REF!) -> 
A180: B/G/640 600 | B180: VENTILATION SYSTEM | N180: 39293.48882 | Q180: =SUM(#REF!) -> 
A181: B/G/640 601 | B181: SUPPLY | Q181: 94071.91
B182: supplying all necessary ventilation parts according to specs and drawings | F182: 0.6 | H182: 56443.146 | M182: =L182+J182 -> 0 | N182: =M182*H182 -> 0 | O182: 0.6 | S182: 56443.146 | U182: 56443.146
A183: B/G/640 602 | B183: FIXTUERES
B184: locate and fix all the ventilation parts according to drawings and specs | D184: LS | F184: 0.2 | H184: 18814.382 | M184: =L184+J184 -> 0 | N184: =M184*H184 -> 0 | O184: 0.2 | S184: 18814.382 | U184: 18814.382
A185: B/G/640 603 | B185: TEST
B186: all the necessary tests to handling the VENTILATION SYSTEM according to specs and industry assets. | D186: LS | F186: 0.2 | H186: 18814.382 | M186: =L186+J186 -> 0 | N186: =M186*H186 -> 0 | O186: 0.2 | S186: 18814.382 | U186: 18814.382
A187: B/G/640 600 | B187: Total | F187: =SUM(F182:F186) -> 1 | M187: =SUM(M182:M186) -> 0 | N187: =SUM(N182:N186) -> 0 | Q187: =SUM(#REF!) -> 
A188: B/G/640 700 | B188: FIRE DETECTION | N188: 18969.87366 | Q188: =SUM(#REF!) -> 
A189: B/G/640 701 | B189: SUPPLY AND ERECT | Q189: 37414.97
B190: Supplying and erecting all necessary fire detection system parts and connections according to specs and drawings | D190: LS | F190: 0.7 | H190: 26190.479 | M190: =L190+J190 -> 0 | N190: =M190*H190 -> 0 | O190: 0.7 | S190: 26190.479 | U190: 26190.479
A191: B/G/640 702 | B191: TEST
B192: all the necessary tests to handling the fire detection system according to specs and industry assets. | D192: LS | F192: 0.3 | H192: 11224.491 | M192: =L192+J192 -> 0 | N192: =M192*H192 -> 0 | O192: 0.3 | S192: 11224.491 | U192: 11224.491
A193: B/G/640 700 | B193: Total | F193: =SUM(F190:F192) -> 1 | M193: =SUM(M190:M192) -> 0 | N193: =SUM(N190:N192) -> 0 | Q193: =SUM(#REF!) -> 
A194: B/G/640 800 | B194: ELECTRICALLY OPERATED OVER HEAD CREAN | N194: 429543.2459 | Q194: =SUM(#REF!) -> 
A195: B/G/640 801 | B195: SUPPLY | Q195: 365403.3
B196: Supplying over head crean according to specifications. | D196: LS | F196: 0.7 | H196: 255782.31 | M196: =L196+J196 -> 0 | N196: =M196*H196 -> 0 | O196: 0.7 | S196: 255782.31 | U196: 255782.31
A197: B/G/640 802 | B197: ERECT AND OPERATE
B198: erecting the over head crean and operate it,including all the required tests. | D198: LS | F198: 0.3 | H198: 109620.99 | M198: =L198+J198 -> 0 | N198: =M198*H198 -> 0 | O198: 0.3 | S198: 109620.99 | U198: 109620.99
A199: B/G/640 800 | B199: Total | F199: =SUM(F196:F198) -> 1 | M199: =SUM(M196:M198) -> 0 | N199: =SUM(N196:N198) -> 0 | Q199: =SUM(#REF!) -> 
A200: B/G/640 900 | B200: R.C CABLE TRENCHES AND DUCTS | N200: 33163.26531 | Q200: =SUM(#REF!) -> 
A201: B/G/640 901 | B201: PLAIN CONCRETE | Q201: 58309.04
B202: Supply and provide ready mix plain concrete grade 250 KG/m³, the clause includes form work, adding additives, pouring and curing,, and that concrete should be finished as per specs and industry assets. | D202: LS | F202: 0.1 | H202: 5830.904 | M202: =L202+J202 -> 0 | N202: =M202*H202 -> 0 | O202: 0.1 | S202: 5830.904 | U202: 5830.904
A203: B/G/640 902 | B203: REINFORCEMENT CONCRETE
... 281 more rows

Sheet civil (2) (hidden)
A3: Project : | B3: Tameya 220/66/11KV S/S
A4: Code | B4: Item Description | D4: Unit | E4: Percentages | F4: Unit Price L.E. | G4: Previous | H4: Current | I4: TOTAL | J4: Total Price L.E.
A5: B/G/600 000 | B5: Civil Works: | D5: LS | J5: 9454398.45
A6: B/G/620 000 | B6: 220 GIS OUTDOOR EQUIPMENTS, RECEIVING GANTREES, SUPPORTS OF GIP CONNECTION, NETURAL POINTS AND CABLE SEALING ENDS. (Lump sum prices of items # 520 100.... 520 200).
A7: B/G/620 100 | B7: Concrete Work | J7: 379008.75
A8: B/G/620 101 | B8: EXCAVATION
B9: Excavation including Excavated material Transfer (As Specified) | D9: LS | E9: 0.1 | F9: =E9*J7 -> 37900.875 | I9: =H9+G9 -> 0 | J9: =I9*F9 -> 0 | K9: 0.1 | M9: 694849.37 | O9: 69484.937 | Q9: 69484.937
A10: B/G/620 102 | B10: SOIL REPLACEMENT
B11: Supply and apply , SOIL REPLACEMENT According to the approved sieve analysis according to drawings &specs , the rate include leveling , water , compaction and compaction test to be compacted with relative compaction 98%. | D11: LS | E11: 0.1 | F11: =E11*J7 -> 37900.875 | I11: =H11+G11 -> 0 | J11: =I11*F11 -> 0 | K11: 0.1 | O11: 69484.937 | Q11: 69484.937
A12: B/G/620 103 | B12: Backfeling
B13: backfilling by approved fill material selected from excavation ,including compaction , the rate include compaction test according to specs. | C13: M3 | D13: LS | E13: 0.12 | F13: =E13*J7 -> 45481.05 | I13: =H13+G13 -> 0 | J13: =I13*F13 -> 0 | K13: 0.12 | O13: 83381.9244 | Q13: 83381.9244
A14: B/G/620 104 | B14: PLAIN CONCRETE
B15: Supply and provide ready mix plain concrete grade 250 KG/m³, the clause includes form work, adding additives, pouring and curing, to be separated from soil by 250 micron polyethylene proofing sheet, and that concrete should be finished as per specs and industry assets. | D15: LS | E15: 0.15 | F15: 104227.4055 | I15: =H15+G15 -> 0 | J15: =I15*F15 -> 0 | K15: 0.15 | O15: 104227.4055 | Q15: 104227.4055
A16: B/G/620 105 | B16: REINFORCEMENT CONCRETE
B17: Reinforced concrete for foundation and semelle with specified strength including all required joints and testing (As Specified) (Cement content not less than 350 Kg/m³) | D17: LS | E17: 0.45 | F17: 312682.2165 | I17: =H17+G17 -> 0 | J17: =I17*F17 -> 0 | K17: 0.45 | O17: 312682.2165 | Q17: 312682.2165
A18: B/G/620 106 | B18: INSULLATION
B19: providing (supplying & painting) three coats of bituminous emulsion above concrete surface which in contact with soil as per drawings & specs. | D19: LS | E19: 0.08 | F19: 55587.9496 | I19: =H19+G19 -> 0 | J19: =I19*F19 -> 0 | K19: 0.08 | O19: 55587.9496 | Q19: 55587.9496
A20: B/G/620 100 | B20: Total | E20: =SUM(E9:E19) -> 1 | I20: =SUM(I9:I19) -> 0 | J20: =SUM(J9:J19) -> 0
A21: B/G 620 200 | B21: STRUCTURAL STEEL WORKS | J21: 1137026.24 | M21: =SUM(#REF!) -> 
A22: B/G/620 201 | B22: SUPPLYING
B23: supplying of complete steel structure (Anchor bolts; columns; embedded beams; embedded plates; fixed plates ) according to drawing and specs. | D23: LS | E23: 0.6 | F23: 571428.57 | I23: =H23+G23 -> 0 | J23: =I23*F23 -> 0 | K23: 0.6 | M23: 952380.95 | O23: 571428.57 | Q23: 571428.57
A24: B/G/620 202 | B24: ERECTION
B25: steel structure erection including welding (Anchor bolts; columns; embedded beams; embedded plates; fixed plates ) according to specs. | D25: LS | E25: 0.3 | F25: 285714.285 | I25: =H25+G25 -> 0 | J25: =I25*F25 -> 0 | K25: 0.3 | O25: 285714.285 | Q25: 285714.285
A26: B/G/620 203 | B26: GROUTING
B27: Supply and apply Non shrink grout (As Specified) | D27: LS | E27: 0.1 | F27: 95238.095 | I27: =H27+G27 -> 0 | J27: =I27*F27 -> 0 | K27: 0.1 | O27: 95238.095 | Q27: 95238.095
A28: B/G/620 200 | B28: Total | E28: =SUM(E23:E27) -> 1 | I28: =SUM(I23:I27) -> 0 | J28: =SUM(J23:J27) -> 0 | M28: =SUM(#REF!) -> 
A29: B/G/630 000 | B29: 220 KV GIS switch gear building (lump sum prices of items Nos. 630 100 through 630 900) | M29: =SUM(#REF!) -> 
A30: B/G/630 100 | B30: Concrete Work | J30: 1183189.5
A31: B/G/630 101 | B31: EXCAVATION
B32: Excavation including Excavated material Transfer (As Specified) | D32: LS | E32: 0.06 | F32: 93673.4694 | I32: =H32+G32 -> 0 | J32: =I32*F32 -> 0 | K32: 0.06 | M32: 1561224.49 | O32: 93673.4694 | Q32: 93673.4694
A33: B/G/630 102 | B33: SOIL REPLACEMENT
B34: Supply and apply , SOIL REPLACEMENT According to the approved sieve analysis according to drawings &specs , the rate include leveling , water , compaction and compaction test to be compacted with relative compaction 98%. | D34: LS | E34: 0.08 | F34: 124897.9592 | I34: =H34+G34 -> 0 | J34: =I34*F34 -> 0 | K34: 0.08 | O34: 124897.9592 | Q34: 124897.9592
A35: B/G/630 103 | B35: Backfeling
B36: backfilling by approved fill material selected from excavation ,including compaction , the rate include compaction test according to specs. | C36: M3 | D36: LS | E36: 0.08 | F36: 124897.9592 | I36: =H36+G36 -> 0 | J36: =I36*F36 -> 0 | K36: 0.08 | O36: 124897.9592 | Q36: 124897.9592
A37: B/G/630 104 | B37: PLAIN CONCRETE
B38: Supply and provide ready mix plain concrete grade 250 KG/m³, the clause includes form work, adding additives, pouring and curing, to be separated from soil by 250 micron polyethylene proofing sheet, and that concrete should be finished as per specs and industry assets. | D38: LS | E38: 0.1 | F38: 156122.449 | I38: =H38+G38 -> 0 | J38: =I38*F38 -> 0 | K38: 0.1 | O38: 156122.449 | Q38: 156122.449
A39: B/G/630 105 | B39: REINFORCEMENT CONCRETE FOR FOOTINGS
B40: Reinforced concrete for foundation and semelle with specified strength including all required joints and testing (As Specified) (Cement content not less than 350 Kg/m³) | D40: LS | E40: 0.2 | F40: 312244.898 | I40: =H40+G40 -> 0 | J40: =I40*F40 -> 0 | K40: 0.2 | O40: 312244.898 | Q40: 312244.898
A41: B/G/630 106 | B41: REINFORCEMENT CONCRETE FOR COLUMNS AND BEAMS
B42: Reinforced concrete for columns and beams with specified strength including all required testing (As Specified) (Cement content not less than 350 Kg/m³) | D42: LS | E42: 0.15 | F42: 234183.6735 | I42: =H42+G42 -> 0 | J42: =I42*F42 -> 0 | K42: 0.15 | O42: 234183.6735 | Q42: 234183.6735
A43: B/G/630 107 | B43: REINFORCEMENT CONCRETE FOR ROOF SLAP
B44: Reinforced concrete for roof slab and beams with specified strength including faire faceand all required testing (As Specified) (Cement content not less than 350 Kg/m³) | D44: LS | E44: 0.2 | F44: 312244.898 | I44: =H44+G44 -> 0 | J44: =I44*F44 -> 0 | K44: 0.2 | O44: 312244.898 | Q44: 312244.898
A45: B/G/630 108 | B45: INSULLATION
B46: providing (supplying & painting) three coats of bituminous emulsion above concrete surface which in contact with soil as per drawings & specs. ( Up to zero level ) | D46: LS | E46: 0.05 | F46: 78061.2245 | I46: =H46+G46 -> 0 | J46: =I46*F46 -> 0 | K46: 0.05 | O46: 78061.2245 | Q46: 78061.2245
A47: B/G/630 109 | B47: SLAP ON GRADE
B48: applying all the reqaired layes of slap on grade according to drawings and specs. | D48: LS | E48: 0.08 | F48: 124897.9592 | I48: =H48+G48 -> 0 | J48: =I48*F48 -> 0 | K48: 0.08 | O48: 124897.9592 | Q48: 124897.9592
A49: B/G/630 100 | B49: Total | E49: =SUM(E32:E48) -> 1 | I49: =SUM(I32:I48) -> 0 | J49: =SUM(J32:J48) -> 0
A50: B/G/630 200 | B50: STRUCTURAL STEEL WORKS | J50: 104398.45 | M50: =SUM(#REF!) -> 
A51: B/G/620 201 | B51: SUPPLYING
B52: supplying of complete steel structure (Anchor bolts; columns; embedded beams; embedded plates; fixed plates ) according to drawing and specs. | D52: LS | E52: 0.6 | F52: 48979.59 | I52: =H52+G52 -> 0 | J52: =I52*F52 -> 0 | K52: 0.6 | M52: 81632.65 | O52: 48979.59 | Q52: 48979.59
A53: B/G/630 202 | B53: ERECTION
B54: steel structure erection including welding (Anchor bolts; columns; embedded beams; embedded plates; fixed plates ) according to specs. | D54: LS | E54: 0.4 | F54: 32653.06 | I54: =H54+G54 -> 0 | J54: =I54*F54 -> 0 | K54: 0.4 | O54: 32653.06 | Q54: 32653.06
A55: B/G/630 200 | B55: Total | E55: =SUM(E52:E54) -> 1 | I55: =SUM(I52:I54) -> 0 | J55: =SUM(J52:J54) -> 0 | M55: =SUM(#REF!) -> 
A56: B/G/630 300 | B56: ARCHITECTURAL WORKS | J56: 904793.97 | M56: =SUM(#REF!) -> 
A57: B/G/630 301 | B57: MASONARY WORK | M57: 714285.71
B58: supplying & constructing and installing)brick walls solid cemented 25cm thick.; the brick dimensions are 250*120*60 mm, the clause includes all lintels; scaffolding; dowels and wire mesh which connect brick with the concrete items before starting plaster works, the mortar contents is 350 kg of ordinary Portland cement for each cubic meter of sand, as per drawings & specs, and all necessary to finish works as per the technical industrial assets, the rate include lentel required. | D58: LS | E58: 0.3 | F58: 214285.713 | I58: =H58+G58 -> 0 | J58: =I58*F58 -> 0 | K58: 0.3 | O58: 214285.713 | Q58: 214285.713
A59: B/G/630 302 | B59: PLASTERING WORKS
B60: providing (supplying & plastering) for the cement mortar for walls, is including leveling; scaffolding; all necessary tools; the cement content in the mortar not less than 350 kg Ordinary Portland Cement for each cubic meter of sand, as per drawings & specs, and all necessary to finish works as per the technical industrial assets. . | D60: LS | E60: 0.15 | F60: 107142.8565 | I60: =H60+G60 -> 0 | J60: =I60*F60 -> 0 | K60: 0.15 | O60: 107142.8565 | Q60: 107142.8565
A61: B/G/630 303 | B61: PAINTING WORKS
B62: providing (supplying & paint) emulsion plastic washable paint for internal walls is including three putty coats; one fin mastic flat coat, and two final coat, the clause included all necessary tools and steel scaffolding as per drawings & specs, and all necessary to finish works as per the technical industrial assets, and the approved color samples. | D62: LS | E62: 0.1 | F62: 71428.571 | I62: =H62+G62 -> 0 | J62: =I62*F62 -> 0 | K62: 0.1 | O62: 71428.571 | Q62: 71428.571
A63: B/G/630 304 | B63: FLOORINNG WORKS
B64: Delivery and installation all the types of floorinng including all required and specs | D64: LS | E64: 0.1 | F64: 71428.571 | I64: =H64+G64 -> 0 | J64: =I64*F64 -> 0 | K64: 0.1 | O64: 71428.571 | Q64: 71428.571
A65: B/G/630 305 | B65: ROOFING SYSTEM
B66: Protection layer for roofing including all requirement and accessories (As Specified) | D66: LS | E66: 0.13 | F66: 92857.1423 | I66: =H66+G66 -> 0 | J66: =I66*F66 -> 0 | K66: 0.13 | O66: 92857.1423 | Q66: 92857.1423
A67: B/G/630 306 | B67: ROLLING SHUTTER DOOR
B68: Delivery and erection of approved according to specs. | D68: LS | E68: 0.16 | F68: 114285.7136 | I68: =H68+G68 -> 0 | J68: =I68*F68 -> 0 | K68: 0.16 | O68: 114285.7136 | Q68: 114285.7136
A69: B/G/630 307 | B69: DOORS
B70: Delivery and erection of approved color aluminum doors. | D70: LS | E70: 0.03 | F70: 21428.5713 | I70: =H70+G70 -> 0 | J70: =I70*F70 -> 0 | K70: 0.03 | O70: 21428.5713 | Q70: 21428.5713
A71: B/G/630 308 | B71: WINDOWS
B72: Delivery and erection of approved color aluminum windows. | D72: LS | E72: 0.03 | F72: 21428.5713 | I72: =H72+G72 -> 0 | J72: =I72*F72 -> 0 | K72: 0.03 | O72: 21428.5713 | Q72: 21428.5713
A73: B/G/630 300 | B73: Total | E73: =SUM(E58:E72) -> 1 | I73: =SUM(I58:I72) -> 0 | J73: =SUM(J58:J72) -> 0 | M73: =SUM(#REF!) -> 
A74: B/G/630 400 | B74: ELECTRICAL WORK | J74: 58000 | M74: =SUM(#REF!) -> 
A75: B/G/630 401 | B75: SUPPLY
B76: supplying all necessary elecreical parts to compleat the work according to specs | E76: 0.25 | F76: 16581.6325 | I76: =H76+G76 -> 0 | J76: =I76*F76 -> 0 | K76: 0.25 | M76: 66326.53 | O76: 16581.6325 | Q76: 16581.6325
A77: B/G/630 402 | B77: FIXTUERES
B78: locate and fix all the electrical items according to drawings and specs | D78: LS | E78: 0.65 | F78: 43112.2445 | I78: =H78+G78 -> 0 | J78: =I78*F78 -> 0 | K78: 0.65 | O78: 43112.2445 | Q78: 43112.2445
A79: B/G/630 403 | B79: TEST
B80: all the necessary tests to handling the electrical work according to specs and industry assets. | D80: LS | E80: 0.1 | F80: 6632.653 | I80: =H80+G80 -> 0 | J80: =I80*F80 -> 0 | K80: 0.1 | O80: 6632.653 | Q80: 6632.653
A81: B/G/630 400 | B81: Total | E81: =SUM(E76:E80) -> 1 | I81: =SUM(I76:I80) -> 0 | J81: =SUM(J76:J80) -> 0 | M81: =SUM(#REF!) -> 
A82: B/G/630 500 | B82: PLUMBING WORK | J82: 144998.06 | M82: =SUM(#REF!) -> 
A83: B/G/630 501 | B83: SUPPLY AND INSTALL | M83: 92322.64
B84: Supplying and installing all necessary embedded items and connections according to specs and drawings | D84: LS | E84: 0.7 | F84: 64625.848 | I84: =H84+G84 -> 0 | J84: =I84*F84 -> 0 | K84: 0.7 | O84: 64625.848 | Q84: 64625.848
A85: B/G/630 502 | B85: TEST
B86: all the necessary tests to handling the plumbing system according to specs and industry assets. | D86: LS | E86: 0.3 | F86: 27696.792 | I86: =H86+G86 -> 0 | J86: =I86*F86 -> 0 | K86: 0.3 | O86: 27696.792 | Q86: 27696.792
A87: B/G/630 500 | B87: Total | E87: =SUM(E84:E86) -> 1 | I87: =SUM(I84:I86) -> 0 | J87: =SUM(J84:J86) -> 0 | M87: =SUM(#REF!) -> 
A88: B/G/630 600 | B88: VENTILATION SYSTEM | J88: 60318.76 | M88: =SUM(#REF!) -> 
A89: B/G/630 601 | B89: SUPPLY | M89: 94071.91
B90: supplying all necessary ventilation parts according to specs and drawings | E90: 0.6 | F90: 56443.146 | I90: =H90+G90 -> 0 | J90: =I90*F90 -> 0 | K90: 0.6 | O90: 56443.146 | Q90: 56443.146
A91: B/G/630 602 | B91: FIXTUERES
B92: locate and fix all the ventilation parts according to drawings and specs | D92: LS | E92: 0.2 | F92: 18814.382 | I92: =H92+G92 -> 0 | J92: =I92*F92 -> 0 | K92: 0.2 | O92: 18814.382 | Q92: 18814.382
A93: B/G/630 603 | B93: TEST
B94: all the necessary tests to handling the VENTILATION SYSTEM according to specs and industry assets. | D94: LS | E94: 0.2 | F94: 18814.382 | I94: =H94+G94 -> 0 | J94: =I94*F94 -> 0 | K94: 0.2 | O94: 18814.382 | Q94: 18814.382
A95: B/G/630 600 | B95: Total | E95: =SUM(E90:E94) -> 1 | I95: =SUM(I90:I94) -> 0 | J95: =SUM(J90:J94) -> 0 | M95: =SUM(#REF!) -> 
A96: B/G/630 700 | B96: FIRE DETECTION | J96: 26678.32847 | M96: =SUM(#REF!) -> 
A97: B/G/630 701 | B97: SUPPLY AND ERECT | M97: 37414.97
B98: Supplying and erecting all necessary fire detection system parts and connections according to specs and drawings | D98: LS | E98: 0.7 | F98: 26190.479 | I98: =H98+G98 -> 0 | J98: =I98*F98 -> 0 | K98: 0.7 | O98: 26190.479 | Q98: 26190.479
A99: B/G/630 702 | B99: TEST
B100: all the necessary tests to handling the fire detection system according to specs and industry assets. | D100: LS | E100: 0.3 | F100: 11224.491 | I100: =H100+G100 -> 0 | J100: =I100*F100 -> 0 | K100: 0.3 | O100: 11224.491 | Q100: 11224.491
A101: B/G/630 700 | B101: Total | E101: =SUM(E98:E100) -> 1 | I101: =SUM(I98:I100) -> 0 | J101: =SUM(J98:J100) -> 0 | M101: =SUM(#REF!) -> 
A102: B/G/630 800 | B102: ELECTRICALLY OPERATED OVER HEAD CREAN | J102: 425247.8134 | M102: =SUM(#REF!) -> 
A103: B/G/630 801 | B103: SUPPLY | M103: 365403.3
B104: Supplying over head crean according to specifications. | D104: LS | E104: 0.7 | F104: 255782.31 | I104: =H104+G104 -> 0 | J104: =I104*F104 -> 0 | K104: 0.7 | O104: 255782.31 | Q104: 255782.31
A105: B/G/630 802 | B105: ERECT AND OPERATE
B106: erecting the over head crean and operate it,including all the required tests. | D106: LS | E106: 0.3 | F106: 109620.99 | I106: =H106+G106 -> 0 | J106: =I106*F106 -> 0 | K106: 0.3 | O106: 109620.99 | Q106: 109620.99
A107: B/G/630 800 | B107: Total | E107: =SUM(E104:E106) -> 1 | I107: =SUM(I104:I106) -> 0 | J107: =SUM(J104:J106) -> 0 | M107: =SUM(#REF!) -> 
A108: B/G/630 900 | B108: R.C CABLE TRENCHES AND DUCTS | J108: 52199.22255 | M108: =SUM(#REF!) -> 
A109: B/G/630 901 | B109: PLAIN CONCRETE | M109: 58309.04
B110: Supply and provide ready mix plain concrete grade 250 KG/m³, the clause includes form work, adding additives, pouring and curing,, and that concrete should be finished as per specs and industry assets. | D110: LS | E110: 0.1 | F110: 5830.904 | I110: =H110+G110 -> 0 | J110: =I110*F110 -> 0 | K110: 0.1 | O110: 5830.904 | Q110: 5830.904
A111: B/G/630 902 | B111: REINFORCEMENT CONCRETE
B112: Reinforced concrete for raft and walls with specified strength including all required and testing (As Specified) (Cement content not less than 350 Kg/m³) | D112: LS | E112: 0.5 | F112: 29154.52 | I112: =H112+G112 -> 0 | J112: =I112*F112 -> 0 | K112: 0.5 | O112: 29154.52 | Q112: 29154.52
A113: B/G/630 903 | B113: CHEQUERED PLATE COVER
B114: Delivery and erection of chequered plate cover including painting & all installation and handling requirement (As Specified) | D114: LS | E114: 0.15 | F114: 8746.356 | I114: =H114+G114 -> 0 | J114: =I114*F114 -> 0 | K114: 0.15 | O114: 8746.356 | Q114: 8746.356
A115: B/G/630 904 | B115: DUCTE
B116: making all the necessary ducte according to drawings and spics. | D116: LS | E116: 0.25 | F116: 14577.26 | I116: =H116+G116 -> 0 | J116: =I116*F116 -> 0 | K116: 0.25 | O116: 14577.26 | Q116: 14577.26
A117: B/G/630 900 | B117: Total | E117: =SUM(E110:E116) -> 1 | I117: =SUM(I110:I116) -> 0 | J117: =SUM(J110:J116) -> 0 | M117: =SUM(#REF!) -> 
A119: B/G/640 000 | B119: 66 KV GIS switch gear building (lump sum prices of items Nos. 640 100 through 640 900) | M119: =SUM(#REF!) -> 
A120: B/G/640 100 | B120: Concrete Work | J120: 751700.6803
A121: B/G/630 101 | B121: EXCAVATION
B122: Excavation including Excavated material Transfer (As Specified) | D122: LS | E122: 0.06 | F122: 93673.4694 | G122: 0 | I122: =H122+G122 -> 0 | J122: =I122*F122 -> 0 | K122: 0.06 | M122: 1561224.49 | O122: 93673.4694 | Q122: 93673.4694
A123: B/G/630 102 | B123: SOIL REPLACEMENT
B124: Supply and apply , SOIL REPLACEMENT According to the approved sieve analysis according to drawings &specs , the rate include leveling , water , compaction and compaction test to be compacted with relative compaction 98%. | D124: LS | E124: 0.08 | F124: 124897.9592 | I124: =H124+G124 -> 0 | J124: =I124*F124 -> 0 | K124: 0.08 | O124: 124897.9592 | Q124: 124897.9592
A125: B/G/630 103 | B125: Backfeling
B126: backfilling by approved fill material selected from excavation ,including compaction , the rate include compaction test according to specs. | C126: M3 | D126: LS | E126: 0.08 | F126: 124897.9592 | I126: =H126+G126 -> 0 | J126: =I126*F126 -> 0 | K126: 0.08 | O126: 124897.9592 | Q126: 124897.9592
A127: B/G/630 104 | B127: PLAIN CONCRETE
B128: Supply and provide ready mix plain concrete grade 250 KG/m³, the clause includes form work, adding additives, pouring and curing, to be separated from soil by 250 micron polyethylene proofing sheet, and that concrete should be finished as per specs and industry assets. | D128: LS | E128: 0.1 | F128: 156122.449 | I128: =H128+G128 -> 0 | J128: =I128*F128 -> 0 | K128: 0.1 | O128: 156122.449 | Q128: 156122.449
A129: B/G/630 105 | B129: REINFORCEMENT CONCRETE FOR FOOTINGS
B130: Reinforced concrete for foundation and semelle with specified strength including all required joints and testing (As Specified) (Cement content not less than 350 Kg/m³) | D130: LS | E130: 0.2 | F130: 312244.898 | I130: =H130+G130 -> 0 | J130: =I130*F130 -> 0 | K130: 0.2 | O130: 312244.898 | Q130: 312244.898
A131: B/G/630 106 | B131: REINFORCEMENT CONCRETE FOR COLUMNS AND BEAMS
B132: Reinforced concrete for columns and beams with specified strength including all required testing (As Specified) (Cement content not less than 350 Kg/m³) | D132: LS | E132: 0.15 | F132: 234183.6735 | I132: =H132+G132 -> 0 | J132: =I132*F132 -> 0 | K132: 0.15 | O132: 234183.6735 | Q132: 234183.6735
A133: B/G/630 107 | B133: REINFORCEMENT CONCRETE FOR ROOF SLAP
B134: Reinforced concrete for roof slab and beams with specified strength including faire faceand all required testing (As Specified) (Cement content not less than 350 Kg/m³) | D134: LS | E134: 0.2 | F134: 312244.898 | I134: =H134+G134 -> 0 | J134: =I134*F134 -> 0 | K134: 0.2 | O134: 312244.898 | Q134: 312244.898
A135: B/G/630 108 | B135: INSULLATION
B136: providing (supplying & painting) three coats of bituminous emulsion above concrete surface which in contact with soil as per drawings & specs. ( Up to zero level ) | D136: LS | E136: 0.05 | F136: 78061.2245 | I136: =H136+G136 -> 0 | J136: =I136*F136 -> 0 | K136: 0.05 | O136: 78061.2245 | Q136: 78061.2245
A137: B/G/630 109 | B137: SLAP ON GRADE
B138: applying all the reqaired layes of slap on grade according to drawings and specs. | D138: LS | E138: 0.08 | F138: 124897.9592 | I138: =H138+G138 -> 0 | J138: =I138*F138 -> 0 | K138: 0.08 | O138: 124897.9592 | Q138: 124897.9592
A139: B/G/640 100 | B139: Total | E139: =SUM(E122:E138) -> 1 | I139: =SUM(I122:I138) -> 0 | J139: =SUM(J122:J138) -> 0
A140: B/G/640 200 | B140: STRUCTURAL STEEL WORKS | J140: 66326.53061 | M140: =SUM(#REF!) -> 
A141: B/G/620 201 | B141: SUPPLYING
B142: supplying of complete steel structure (Anchor bolts; columns; embedded beams; embedded plates; fixed plates ) according to drawing and specs. | D142: LS | E142: 0.6 | F142: 48979.59 | I142: =H142+G142 -> 0 | J142: =I142*F142 -> 0 | K142: 0.6 | M142: 81632.65 | O142: 48979.59 | Q142: 48979.59
A143: B/G/630 202 | B143: ERECTION
B144: steel structure erection including welding (Anchor bolts; columns; embedded beams; embedded plates; fixed plates ) according to specs. | D144: LS | E144: 0.4 | F144: 32653.06 | I144: =H144+G144 -> 0 | J144: =I144*F144 -> 0 | K144: 0.4 | O144: 32653.06 | Q144: 32653.06
A145: B/G/640 200 | B145: Total | E145: =SUM(E142:E144) -> 1 | I145: =SUM(I142:I144) -> 0 | J145: =SUM(J142:J144) -> 0 | M145: =SUM(#REF!) -> 
A146: B/G/640 300 | B146: ARCHITECTURAL WORKS | J146: 574829.932 | M146: =SUM(#REF!) -> 
A147: B/G/630 301 | B147: MASONARY WORK | M147: 714285.71
B148: supplying & constructing and installing)brick walls solid cemented 25cm thick.; the brick dimensions are 250*120*60 mm, the clause includes all lintels; scaffolding; dowels and wire mesh which connect brick with the concrete items before starting plaster works, the mortar contents is 350 kg of ordinary Portland cement for each cubic meter of sand, as per drawings & specs, and all necessary to finish works as per the technical industrial assets, the rate include lentel required. | D148: LS | E148: 0.3 | F148: 214285.713 | I148: =H148+G148 -> 0 | J148: =I148*F148 -> 0 | K148: 0.3 | O148: 214285.713 | Q148: 214285.713
A149: B/G/630 302 | B149: PLASTERING WORKS
B150: providing (supplying & plastering) for the cement mortar for walls, is including leveling; scaffolding; all necessary tools; the cement content in the mortar not less than 350 kg Ordinary Portland Cement for each cubic meter of sand, as per drawings & specs, and all necessary to finish works as per the technical industrial assets. . | D150: LS | E150: 0.15 | F150: 107142.8565 | I150: =H150+G150 -> 0 | J150: =I150*F150 -> 0 | K150: 0.15 | O150: 107142.8565 | Q150: 107142.8565
A151: B/G/630 303 | B151: PAINTING WORKS
B152: providing (supplying & paint) emulsion plastic washable paint for internal walls is including three putty coats; one fin mastic flat coat, and two final coat, the clause included all necessary tools and steel scaffolding as per drawings & specs, and all necessary to finish works as per the technical industrial assets, and the approved color samples. | D152: LS | E152: 0.1 | F152: 71428.571 | I152: =H152+G152 -> 0 | J152: =I152*F152 -> 0 | K152: 0.1 | O152: 71428.571 | Q152: 71428.571
A153: B/G/630 304 | B153: FLOORINNG WORKS
B154: Delivery and installation all the types of floorinng including all required and specs | D154: LS | E154: 0.1 | F154: 71428.571 | I154: =H154+G154 -> 0 | J154: =I154*F154 -> 0 | K154: 0.1 | O154: 71428.571 | Q154: 71428.571
A155: B/G/630 305 | B155: ROOFING SYSTEM
B156: Protection layer for roofing including all requirement and accessories (As Specified) | D156: LS | E156: 0.13 | F156: 92857.1423 | I156: =H156+G156 -> 0 | J156: =I156*F156 -> 0 | K156: 0.13 | O156: 92857.1423 | Q156: 92857.1423
A157: B/G/630 306 | B157: ROLLING SHUTTER DOOR
B158: Delivery and erection of approved according to specs. | D158: LS | E158: 0.16 | F158: 114285.7136 | I158: =H158+G158 -> 0 | J158: =I158*F158 -> 0 | K158: 0.16 | O158: 114285.7136 | Q158: 114285.7136
A159: B/G/630 307 | B159: DOORS
B160: Delivery and erection of approved color aluminum doors. | D160: LS | E160: 0.03 | F160: 21428.5713 | I160: =H160+G160 -> 0 | J160: =I160*F160 -> 0 | K160: 0.03 | O160: 21428.5713 | Q160: 21428.5713
A161: B/G/630 308 | B161: WINDOWS
B162: Delivery and erection of approved color aluminum windows. | D162: LS | E162: 0.03 | F162: 21428.5713 | I162: =H162+G162 -> 0 | J162: =I162*F162 -> 0 | K162: 0.03 | O162: 21428.5713 | Q162: 21428.5713
A163: B/G/640 300 | B163: Total | E163: =SUM(E148:E162) -> 1 | I163: =SUM(I148:I162) -> 0 | J163: =SUM(J148:J162) -> 0 | M163: =SUM(#REF!) -> 
A164: B/G/640 400 | B164: ELECTRICAL WORK | J164: 57256.55977 | M164: =SUM(#REF!) -> 
A165: B/G/630 401 | B165: SUPPLY
B166: supplying all necessary elecreical parts to compleat the work according to specs | E166: 0.25 | F166: 16581.6325 | I166: =H166+G166 -> 0 | J166: =I166*F166 -> 0 | K166: 0.25 | M166: 66326.53 | O166: 16581.6325 | Q166: 16581.6325
A167: B/G/630 402 | B167: FIXTUERES
B168: locate and fix all the electrical items according to drawings and specs | D168: LS | E168: 0.65 | F168: 43112.2445 | I168: =H168+G168 -> 0 | J168: =I168*F168 -> 0 | K168: 0.65 | O168: 43112.2445 | Q168: 43112.2445
A169: B/G/630 403 | B169: TEST
B170: all the necessary tests to handling the electrical work according to specs and industry assets. | D170: LS | E170: 0.1 | F170: 6632.653 | I170: =H170+G170 -> 0 | J170: =I170*F170 -> 0 | K170: 0.1 | O170: 6632.653 | Q170: 6632.653
A171: B/G/640 400 | B171: Total | E171: =SUM(E166:E170) -> 1 | I171: =SUM(I166:I170) -> 0 | J171: =SUM(J166:J170) -> 0 | M171: =SUM(#REF!) -> 
A172: B/G/640 500 | B172: PLUMBING WORK | J172: 92120.50534 | M172: =SUM(#REF!) -> 
A173: B/G/630 501 | B173: SUPPLY AND INSTALL | M173: 92322.64
B174: Supplying and installing all necessary embedded items and connections according to specs and drawings | D174: LS | E174: 0.7 | F174: 64625.848 | I174: =H174+G174 -> 0 | J174: =I174*F174 -> 0 | K174: 0.7 | O174: 64625.848 | Q174: 64625.848
A175: B/G/630 502 | B175: TEST
B176: all the necessary tests to handling the plumbing system according to specs and industry assets. | D176: LS | E176: 0.3 | F176: 27696.792 | I176: =H176+G176 -> 0 | J176: =I176*F176 -> 0 | K176: 0.3 | O176: 27696.792 | Q176: 27696.792
A177: B/G/640 500 | B177: Total | E177: =SUM(E174:E176) -> 1 | I177: =SUM(I174:I176) -> 0 | J177: =SUM(J174:J176) -> 0 | M177: =SUM(#REF!) -> 
A178: B/G/640 600 | B178: VENTILATION SYSTEM | J178: 39293.48882 | M178: =SUM(#REF!) -> 
A179: B/G/630 601 | B179: SUPPLY | M179: 94071.91
B180: supplying all necessary ventilation parts according to specs and drawings | E180: 0.6 | F180: 56443.146 | I180: =H180+G180 -> 0 | J180: =I180*F180 -> 0 | K180: 0.6 | O180: 56443.146 | Q180: 56443.146
A181: B/G/630 602 | B181: FIXTUERES
B182: locate and fix all the ventilation parts according to drawings and specs | D182: LS | E182: 0.2 | F182: 18814.382 | I182: =H182+G182 -> 0 | J182: =I182*F182 -> 0 | K182: 0.2 | O182: 18814.382 | Q182: 18814.382
A183: B/G/630 603 | B183: TEST
B184: all the necessary tests to handling the VENTILATION SYSTEM according to specs and industry assets. | D184: LS | E184: 0.2 | F184: 18814.382 | I184: =H184+G184 -> 0 | J184: =I184*F184 -> 0 | K184: 0.2 | O184: 18814.382 | Q184: 18814.382
A185: B/G/640 600 | B185: Total | E185: =SUM(E180:E184) -> 1 | I185: =SUM(I180:I184) -> 0 | J185: =SUM(J180:J184) -> 0 | M185: =SUM(#REF!) -> 
A186: B/G/640 700 | B186: FIRE DETECTION | J186: 18969.87366 | M186: =SUM(#REF!) -> 
A187: B/G/630 701 | B187: SUPPLY AND ERECT | M187: 37414.97
B188: Supplying and erecting all necessary fire detection system parts and connections according to specs and drawings | D188: LS | E188: 0.7 | F188: 26190.479 | I188: =H188+G188 -> 0 | J188: =I188*F188 -> 0 | K188: 0.7 | O188: 26190.479 | Q188: 26190.479
A189: B/G/630 702 | B189: TEST
B190: all the necessary tests to handling the fire detection system according to specs and industry assets. | D190: LS | E190: 0.3 | F190: 11224.491 | I190: =H190+G190 -> 0 | J190: =I190*F190 -> 0 | K190: 0.3 | O190: 11224.491 | Q190: 11224.491
A191: B/G/640 700 | B191: Total | E191: =SUM(E188:E190) -> 1 | I191: =SUM(I188:I190) -> 0 | J191: =SUM(J188:J190) -> 0 | M191: =SUM(#REF!) -> 
A192: B/G/640 800 | B192: ELECTRICALLY OPERATED OVER HEAD CREAN | J192: 429543.2459 | M192: =SUM(#REF!) -> 
A193: B/G/630 801 | B193: SUPPLY | M193: 365403.3
B194: Supplying over head crean according to specifications. | D194: LS | E194: 0.7 | F194: 255782.31 | I194: =H194+G194 -> 0 | J194: =I194*F194 -> 0 | K194: 0.7 | O194: 255782.31 | Q194: 255782.31
A195: B/G/630 802 | B195: ERECT AND OPERATE
B196: erecting the over head crean and operate it,including all the required tests. | D196: LS | E196: 0.3 | F196: 109620.99 | I196: =H196+G196 -> 0 | J196: =I196*F196 -> 0 | K196: 0.3 | O196: 109620.99 | Q196: 109620.99
A197: B/G/640 800 | B197: Total | E197: =SUM(E194:E196) -> 1 | I197: =SUM(I194:I196) -> 0 | J197: =SUM(J194:J196) -> 0 | M197: =SUM(#REF!) -> 
A198: B/G/640 900 | B198: R.C CABLE TRENCHES AND DUCTS | J198: 33163.26531 | M198: =SUM(#REF!) -> 
A199: B/G/630 901 | B199: PLAIN CONCRETE | M199: 58309.04
B200: Supply and provide ready mix plain concrete grade 250 KG/m³, the clause includes form work, adding additives, pouring and curing,, and that concrete should be finished as per specs and industry assets. | D200: LS | E200: 0.1 | F200: 5830.904 | I200: =H200+G200 -> 0 | J200: =I200*F200 -> 0 | K200: 0.1 | O200: 5830.904 | Q200: 5830.904
A201: B/G/630 902 | B201: REINFORCEMENT CONCRETE
B202: Reinforced concrete for raft and walls with specified strength including all required and testing (As Specified) (Cement content not less than 350 Kg/m³) | D202: LS | E202: 0.5 | F202: 29154.52 | I202: =H202+G202 -> 0 | J202: =I202*F202 -> 0 | K202: 0.5 | O202: 29154.52 | Q202: 29154.52
A203: B/G/630 903 | B203: CHEQUERED PLATE COVER
... 258 more rows
